Workbook

Sheet ベネッセ貼り付け
A1: ベネッセ | B1: １．緑の部分にベネッセを貼り、Ａ列、Ｂ列、Ｏ列の行数を調節する。
A2: 通し番号 | B2: コード | C2: 大学ｺｰﾄﾞ | D2: 学部ｺｰﾄﾞ | E2: 学科ｺｰﾄﾞ | F2: 日程ｺｰﾄﾞ | G2: 方式ｺｰﾄﾞ | H2: 小分類CD | I2: 大学名 | J2: 学部名 | K2: 学科名 | L2: 日程 | M2: 入試方式 | N2: 募集単位
A3: 1 | B3: =G3+F3*10+E3*100+D3*10000+C3*1000000 -> 1005550110 | C3: 1005 | D3: 55 | E3: 1 | F3: 1 | G3: 0 | H3: 601 | I3: 旭川医大 | J3: 医 | K3: 医 | L3: 前 | N3: 1 | O3: =I3&"_"&J3&"_"&K3&M3&"_"&L3&"期" -> 旭川医大 _医 _医 _前期
A4: 2 | B4: =G4+F4*10+E4*100+D4*10000+C4*1000000 -> 1005550120 | C4: 1005 | D4: 55 | E4: 1 | F4: 2 | G4: 0 | H4: 601 | I4: 旭川医大 | J4: 医 | K4: 医 | L4: 後 | N4: 1 | O4: =I4&"_"&J4&"_"&K4&M4&"_"&L4&"期" -> 旭川医大 _医 _医 _後期
A5: 3 | B5: 1005550210 | C5: 1005 | D5: 55 | E5: 2 | F5: 1 | G5: 0 | H5: 651 | I5: 旭川医大 | J5: 医 | K5: 看護 | L5: 前 | N5: 1 | O5: 旭川医大 _医 _看護 _前期
A6: 4 | B6: 1005550220 | C6: 1005 | D6: 55 | E6: 2 | F6: 2 | G6: 0 | H6: 651 | I6: 旭川医大 | J6: 医 | K6: 看護 | L6: 後 | N6: 1 | O6: 旭川医大 _医 _看護 _後期
A7: 5 | B7: 1010200010 | C7: 1010 | D7: 20 | E7: 0 | F7: 1 | G7: 0 | H7: 222 | I7: 小樽商大 | J7: 商 | L7: 前 | N7: 1 | O7: 小樽商大 _商 _ _前期
A8: 6 | B8: 1010200020 | C8: 1010 | D8: 20 | E8: 0 | F8: 2 | G8: 0 | H8: 222 | I8: 小樽商大 | J8: 商 | L8: 後 | N8: 1 | O8: 小樽商大 _商 _ _後期
A9: 7 | B9: 1010240010 | C9: 1010 | D9: 24 | E9: 0 | F9: 1 | G9: 0 | H9: 222 | I9: 小樽商大 | J9: 商夜 | L9: 前 | N9: 1 | O9: 小樽商大 _商夜 _ _前期
A10: 8 | B10: 1015740510 | C10: 1015 | D10: 74 | E10: 5 | F10: 1 | G10: 0 | H10: 709 | I10: 帯広畜産大 | J10: 畜産 | K10: 畜産科学 | L10: 前 | N10: 1 | O10: 帯広畜産大 _畜産 _畜産科学 _前期
A11: 9 | B11: 1015740520 | C11: 1015 | D11: 74 | E11: 5 | F11: 2 | G11: 0 | H11: 709 | I11: 帯広畜産大 | J11: 畜産 | K11: 畜産科学 | L11: 後 | N11: 1 | O11: 帯広畜産大 _畜産 _畜産科学 _後期
A12: 10 | B12: 1015740610 | C12: 1015 | D12: 74 | E12: 6 | F12: 1 | G12: 0 | H12: 705 | I12: 帯広畜産大 | J12: 畜産 | K12: 共同獣医学 | L12: 前 | N12: 1 | O12: 帯広畜産大 _畜産 _共同獣医学 _前期
A13: 11 | B13: 1015740620 | C13: 1015 | D13: 74 | E13: 6 | F13: 2 | G13: 0 | H13: 705 | I13: 帯広畜産大 | J13: 畜産 | K13: 共同獣医学 | L13: 後 | N13: 1 | O13: 帯広畜産大 _畜産 _共同獣医学 _後期
A14: 12 | B14: 1020461010 | C14: 1020 | D14: 46 | E14: 10 | F14: 1 | G14: 0 | H14: 562 | I14: 北見工大 | J14: 工 | K14: 地球環境工 | L14: 前 | N14: 1 | O14: 北見工大 _工 _地球環境工 _前期
A15: 13 | B15: 1020461020 | C15: 1020 | D15: 46 | E15: 10 | F15: 2 | G15: 0 | H15: 562 | I15: 北見工大 | J15: 工 | K15: 地球環境工 | L15: 後 | N15: 1 | O15: 北見工大 _工 _地球環境工 _後期
A16: 14 | B16: 1020461110 | C16: 1020 | D16: 46 | E16: 11 | F16: 1 | G16: 0 | H16: 551 | I16: 北見工大 | J16: 工 | K16: 地域未来デザ | L16: 前 | N16: 1 | O16: 北見工大 _工 _地域未来デザ _前期
A17: 15 | B17: 1020461120 | C17: 1020 | D17: 46 | E17: 11 | F17: 2 | G17: 0 | H17: 551 | I17: 北見工大 | J17: 工 | K17: 地域未来デザ | L17: 後 | N17: 1 | O17: 北見工大 _工 _地域未来デザ _後期
A18: 16 | B18: 1025010110 | C18: 1025 | D18: 1 | E18: 1 | F18: 1 | G18: 0 | H18: 106 | I18: 北海道大 | J18: 文 | K18: 人文科学 | L18: 前 | N18: 1 | O18: 北海道大 _文 _人文科学 _前期
A19: 17 | B19: 1025010120 | C19: 1025 | D19: 1 | E19: 1 | F19: 2 | G19: 0 | H19: 106 | I19: 北海道大 | J19: 文 | K19: 人文科学 | L19: 後 | N19: 1 | O19: 北海道大 _文 _人文科学 _後期
A20: 18 | B20: 1025120110 | C20: 1025 | D20: 12 | E20: 1 | F20: 1 | G20: 0 | H20: 201 | I20: 北海道大 | J20: 法 | K20: 法学 | L20: 前 | N20: 1 | O20: 北海道大 _法 _法学 _前期
A21: 19 | B21: 1025120120 | C21: 1025 | D21: 12 | E21: 1 | F21: 2 | G21: 0 | H21: 201 | I21: 北海道大 | J21: 法 | K21: 法学 | L21: 後 | N21: 1 | O21: 北海道大 _法 _法学 _後期
A22: 20 | B22: 1025180010 | C22: 1025 | D22: 18 | E22: 0 | F22: 1 | G22: 0 | H22: 221 | I22: 北海道大 | J22: 経済 | L22: 前 | N22: 1 | O22: 北海道大 _経済 _ _前期
A23: 21 | B23: 1025180020 | C23: 1025 | D23: 18 | E23: 0 | F23: 2 | G23: 0 | H23: 221 | I23: 北海道大 | J23: 経済 | L23: 後 | N23: 1 | O23: 北海道大 _経済 _ _後期
A24: 22 | B24: 1025300110 | C24: 1025 | D24: 30 | E24: 1 | F24: 1 | G24: 0 | H24: 316 | I24: 北海道大 | J24: 教育 | K24: 教育 | L24: 前 | N24: 1 | O24: 北海道大 _教育 _教育 _前期
A25: 23 | B25: 1025300120 | C25: 1025 | D25: 30 | E25: 1 | F25: 2 | G25: 0 | H25: 316 | I25: 北海道大 | J25: 教育 | K25: 教育 | L25: 後 | N25: 1 | O25: 北海道大 _教育 _教育 _後期
A26: 24 | B26: 1025420120 | C26: 1025 | D26: 42 | E26: 1 | F26: 2 | G26: 0 | H26: 503 | I26: 北海道大 | J26: 理 | K26: 化学 | L26: 後 | N26: 1 | O26: 北海道大 _理 _化学 _後期
A27: 25 | B27: 1025420320 | C27: 1025 | D27: 42 | E27: 3 | F27: 2 | G27: 0 | H27: 501 | I27: 北海道大 | J27: 理 | K27: 数学 | L27: 後 | N27: 1 | O27: 北海道大 _理 _数学 _後期
A28: 26 | B28: 1025420720 | C28: 1025 | D28: 42 | E28: 7 | F28: 2 | G28: 0 | H28: 505 | I28: 北海道大 | J28: 理 | K28: 地球惑星科学 | L28: 後 | N28: 1 | O28: 北海道大 _理 _地球惑星科学 _後期
A29: 27 | B29: 1025420820 | C29: 1025 | D29: 42 | E29: 8 | F29: 2 | G29: 0 | H29: 502 | I29: 北海道大 | J29: 理 | K29: 物理 | L29: 後 | N29: 1 | O29: 北海道大 _理 _物理 _後期
A30: 28 | B30: 1025421320 | C30: 1025 | D30: 42 | E30: 13 | F30: 2 | G30: 0 | H30: 504 | I30: 北海道大 | J30: 理 | K30: 生物／生物学 | L30: 後 | N30: 1 | O30: 北海道大 _理 _生物／生物学 _後期
A31: 29 | B31: 1025421420 | C31: 1025 | D31: 42 | E31: 14 | F31: 2 | G31: 0 | H31: 564 | I31: 北海道大 | J31: 理 | K31: 生物／高分子 | L31: 後 | N31: 1 | O31: 北海道大 _理 _生物／高分子 _後期
A32: 30 | B32: 1025461120 | C32: 1025 | D32: 46 | E32: 11 | F32: 2 | G32: 0 | H32: 554 | I32: 北海道大 | J32: 工 | K32: 環境社会工 | L32: 後 | N32: 1 | O32: 北海道大 _工 _環境社会工 _後期
A33: 31 | B33: 1025461220 | C33: 1025 | D33: 46 | E33: 12 | F33: 2 | G33: 0 | H33: 553 | I33: 北海道大 | J33: 工 | K33: 情報エレクト | L33: 後 | N33: 1 | O33: 北海道大 _工 _情報エレクト _後期
A34: 32 | B34: 1025461820 | C34: 1025 | D34: 46 | E34: 18 | F34: 2 | G34: 0 | H34: 555 | I34: 北海道大 | J34: 工 | K34: 応用理工系 | L34: 後 | N34: 1 | O34: 北海道大 _工 _応用理工系 _後期
A35: 33 | B35: 1025461920 | C35: 1025 | D35: 46 | E35: 19 | F35: 2 | G35: 0 | H35: 551 | I35: 北海道大 | J35: 工 | K35: 機械知能工 | L35: 後 | N35: 1 | O35: 北海道大 _工 _機械知能工 _後期
A36: 34 | B36: 1025550110 | C36: 1025 | D36: 55 | E36: 1 | F36: 1 | G36: 0 | H36: 601 | I36: 北海道大 | J36: 医 | K36: 医 | L36: 前 | N36: 1 | O36: 北海道大 _医 _医 _前期
A37: 35 | B37: 1025550310 | C37: 1025 | D37: 55 | E37: 3 | F37: 1 | G37: 0 | H37: 651 | I37: 北海道大 | J37: 医 | K37: 保健／看護学 | L37: 前 | N37: 1 | O37: 北海道大 _医 _保健／看護学 _前期
A38: 36 | B38: 1025550410 | C38: 1025 | D38: 55 | E38: 4 | F38: 1 | G38: 0 | H38: 657 | I38: 北海道大 | J38: 医 | K38: 保健／放射線 | L38: 前 | N38: 1 | O38: 北海道大 _医 _保健／放射線 _前期
A39: 37 | B39: 1025550420 | C39: 1025 | D39: 55 | E39: 4 | F39: 2 | G39: 0 | H39: 657 | I39: 北海道大 | J39: 医 | K39: 保健／放射線 | L39: 後 | N39: 1 | O39: 北海道大 _医 _保健／放射線 _後期
A40: 38 | B40: 1025550510 | C40: 1025 | D40: 55 | E40: 5 | F40: 1 | G40: 0 | H40: 658 | I40: 北海道大 | J40: 医 | K40: 保健／検査技 | L40: 前 | N40: 1 | O40: 北海道大 _医 _保健／検査技 _前期
A41: 39 | B41: 1025550520 | C41: 1025 | D41: 55 | E41: 5 | F41: 2 | G41: 0 | H41: 658 | I41: 北海道大 | J41: 医 | K41: 保健／検査技 | L41: 後 | N41: 1 | O41: 北海道大 _医 _保健／検査技 _後期
A42: 40 | B42: 1025550610 | C42: 1025 | D42: 55 | E42: 6 | F42: 1 | G42: 0 | H42: 655 | I42: 北海道大 | J42: 医 | K42: 保健／理学療 | L42: 前 | N42: 1 | O42: 北海道大 _医 _保健／理学療 _前期
A43: 41 | B43: 1025550620 | C43: 1025 | D43: 55 | E43: 6 | F43: 2 | G43: 0 | H43: 655 | I43: 北海道大 | J43: 医 | K43: 保健／理学療 | L43: 後 | N43: 1 | O43: 北海道大 _医 _保健／理学療 _後期
A44: 42 | B44: 1025550710 | C44: 1025 | D44: 55 | E44: 7 | F44: 1 | G44: 0 | H44: 656 | I44: 北海道大 | J44: 医 | K44: 保健／作業療 | L44: 前 | N44: 1 | O44: 北海道大 _医 _保健／作業療 _前期
A45: 43 | B45: 1025580110 | C45: 1025 | D45: 58 | E45: 1 | F45: 1 | G45: 0 | H45: 611 | I45: 北海道大 | J45: 歯 | K45: 歯 | L45: 前 | N45: 1 | O45: 北海道大 _歯 _歯 _前期
A46: 44 | B46: 1025580120 | C46: 1025 | D46: 58 | E46: 1 | F46: 2 | G46: 0 | H46: 611 | I46: 北海道大 | J46: 歯 | K46: 歯 | L46: 後 | N46: 1 | O46: 北海道大 _歯 _歯 _後期
A47: 45 | B47: 1025610020 | C47: 1025 | D47: 61 | E47: 0 | F47: 2 | G47: 0 | H47: 621 | I47: 北海道大 | J47: 薬 | L47: 後 | N47: 1 | O47: 北海道大 _薬 _ _後期
A48: 46 | B48: 1025720020 | C48: 1025 | D48: 72 | E48: 0 | F48: 2 | G48: 0 | H48: 701 | I48: 北海道大 | J48: 農 | L48: 後 | N48: 1 | O48: 北海道大 _農 _ _後期
A49: 47 | B49: 1025730010 | C49: 1025 | D49: 73 | E49: 0 | F49: 1 | G49: 0 | H49: 708 | I49: 北海道大 | J49: 水産 | L49: 前 | N49: 1 | O49: 北海道大 _水産 _ _前期
A50: 48 | B50: 1025730020 | C50: 1025 | D50: 73 | E50: 0 | F50: 2 | G50: 0 | H50: 708 | I50: 北海道大 | J50: 水産 | L50: 後 | N50: 1 | O50: 北海道大 _水産 _ _後期
A51: 49 | B51: 1025740210 | C51: 1025 | D51: 74 | E51: 2 | F51: 1 | G51: 0 | H51: 705 | I51: 北海道大 | J51: 獣医 | K51: 共同獣医学 | L51: 前 | N51: 1 | O51: 北海道大 _獣医 _共同獣医学 _前期
A52: 50 | B52: 1025740220 | C52: 1025 | D52: 74 | E52: 2 | F52: 2 | G52: 0 | H52: 705 | I52: 北海道大 | J52: 獣医 | K52: 共同獣医学 | L52: 後 | N52: 1 | O52: 北海道大 _獣医 _共同獣医学 _後期
A53: 51 | B53: 1025910010 | C53: 1025 | D53: 91 | E53: 0 | F53: 1 | G53: 0 | H53: 221 | I53: 北海道大 | J53: 総合文系 | L53: 前 | N53: 1 | O53: 北海道大 _総合文系_ _前期
A54: 52 | B54: 1025920011 | C54: 1025 | D54: 92 | E54: 0 | F54: 1 | G54: 1 | H54: 564 | I54: 北海道大 | J54: 総合理系 | L54: 前 | M54: 数学 | N54: 1 | O54: 北海道大 _総合理系_ 数学 _前期
A55: 53 | B55: 1025920012 | C55: 1025 | D55: 92 | E55: 0 | F55: 1 | G55: 2 | H55: 564 | I55: 北海道大 | J55: 総合理系 | L55: 前 | M55: 物理 | N55: 1 | O55: 北海道大 _総合理系_ 物理 _前期
A56: 54 | B56: 1025920013 | C56: 1025 | D56: 92 | E56: 0 | F56: 1 | G56: 3 | H56: 564 | I56: 北海道大 | J56: 総合理系 | L56: 前 | M56: 化学 | N56: 1 | O56: 北海道大 _総合理系_ 化学 _前期
A57: 55 | B57: 1025920014 | C57: 1025 | D57: 92 | E57: 0 | F57: 1 | G57: 4 | H57: 564 | I57: 北海道大 | J57: 総合理系 | L57: 前 | M57: 生物 | N57: 1 | O57: 北海道大 _総合理系_ 生物 _前期
A58: 56 | B58: 1025920015 | C58: 1025 | D58: 92 | E58: 0 | F58: 1 | G58: 5 | H58: 564 | I58: 北海道大 | J58: 総合理系 | L58: 前 | M58: 総合 | N58: 1 | O58: 北海道大 _総合理系_ 総合 _前期
A59: 57 | B59: 1030301710 | C59: 1030 | D59: 30 | E59: 17 | F59: 1 | G59: 0 | H59: 301 | I59: 北教大旭川校 | J59: 教育 | K59: 教員／教育発 | L59: 前 | N59: 1 | O59: 北教大旭川校 _教育 _教員／教育発 _前期
A60: 58 | B60: 1030301720 | C60: 1030 | D60: 30 | E60: 17 | F60: 2 | G60: 0 | H60: 301 | I60: 北教大旭川校 | J60: 教育 | K60: 教員／教育発 | L60: 後 | N60: 1 | O60: 北教大旭川校 _教育 _教員／教育発 _後期
A61: 59 | B61: 1030301910 | C61: 1030 | D61: 30 | E61: 19 | F61: 1 | G61: 0 | H61: 301 | I61: 北教大旭川校 | J61: 教育 | K61: 教員／国語 | L61: 前 | N61: 1 | O61: 北教大旭川校 _教育 _教員／国語 _前期
A62: 60 | B62: 1030301920 | C62: 1030 | D62: 30 | E62: 19 | F62: 2 | G62: 0 | H62: 301 | I62: 北教大旭川校 | J62: 教育 | K62: 教員／国語 | L62: 後 | N62: 1 | O62: 北教大旭川校 _教育 _教員／国語 _後期
A63: 61 | B63: 1030302010 | C63: 1030 | D63: 30 | E63: 20 | F63: 1 | G63: 0 | H63: 301 | I63: 北教大旭川校 | J63: 教育 | K63: 教員／英語 | L63: 前 | N63: 1 | O63: 北教大旭川校 _教育 _教員／英語 _前期
A64: 62 | B64: 1030302020 | C64: 1030 | D64: 30 | E64: 20 | F64: 2 | G64: 0 | H64: 301 | I64: 北教大旭川校 | J64: 教育 | K64: 教員／英語 | L64: 後 | N64: 1 | O64: 北教大旭川校 _教育 _教員／英語 _後期
A65: 63 | B65: 1030302710 | C65: 1030 | D65: 30 | E65: 27 | F65: 1 | G65: 0 | H65: 301 | I65: 北教大旭川校 | J65: 教育 | K65: 教員／社会 | L65: 前 | N65: 1 | O65: 北教大旭川校 _教育 _教員／社会 _前期
A66: 64 | B66: 1030302720 | C66: 1030 | D66: 30 | E66: 27 | F66: 2 | G66: 0 | H66: 301 | I66: 北教大旭川校 | J66: 教育 | K66: 教員／社会 | L66: 後 | N66: 1 | O66: 北教大旭川校 _教育 _教員／社会 _後期
A67: 65 | B67: 1030302810 | C67: 1030 | D67: 30 | E67: 28 | F67: 1 | G67: 0 | H67: 301 | I67: 北教大旭川校 | J67: 教育 | K67: 教員／数学 | L67: 前 | N67: 1 | O67: 北教大旭川校 _教育 _教員／数学 _前期
A68: 66 | B68: =G68+F68*10+E68*100+D68*10000+C68*1000000 -> 1030302820 | C68: 1030 | D68: 30 | E68: 28 | F68: 2 | G68: 0 | H68: 301 | I68: 北教大旭川校 | J68: 教育 | K68: 教員／数学 | L68: 後 | N68: 1 | O68: =I68&"_"&J68&"_"&K68&M68&"_"&L68&"期" -> 北教大旭川校 _教育 _教員／数学 _後期
A69: 67 | B69: 1030302910 | C69: 1030 | D69: 30 | E69: 29 | F69: 1 | G69: 0 | H69: 301 | I69: 北教大旭川校 | J69: 教育 | K69: 教員／理科 | L69: 前 | N69: 1 | O69: 北教大旭川校 _教育 _教員／理科 _前期
A70: 68 | B70: 1030302920 | C70: 1030 | D70: 30 | E70: 29 | F70: 2 | G70: 0 | H70: 301 | I70: 北教大旭川校 | J70: 教育 | K70: 教員／理科 | L70: 後 | N70: 1 | O70: 北教大旭川校 _教育 _教員／理科 _後期
A71: 69 | B71: 1030303010 | C71: 1030 | D71: 30 | E71: 30 | F71: 1 | G71: 0 | H71: 301 | I71: 北教大旭川校 | J71: 教育 | K71: 教員／生活技 | L71: 前 | N71: 1 | O71: 北教大旭川校 _教育 _教員／生活技 _前期
A72: 70 | B72: 1030303020 | C72: 1030 | D72: 30 | E72: 30 | F72: 2 | G72: 0 | H72: 301 | I72: 北教大旭川校 | J72: 教育 | K72: 教員／生活技 | L72: 後 | N72: 1 | O72: 北教大旭川校 _教育 _教員／生活技 _後期
A73: 71 | B73: 1030303210 | C73: 1030 | D73: 30 | E73: 32 | F73: 1 | G73: 0 | H73: 301 | I73: 北教大旭川校 | J73: 教育 | K73: 教員／音楽 | L73: 前 | N73: 1 | O73: 北教大旭川校 _教育 _教員／音楽 _前期
A74: 72 | B74: 1030303310 | C74: 1030 | D74: 30 | E74: 33 | F74: 1 | G74: 0 | H74: 301 | I74: 北教大旭川校 | J74: 教育 | K74: 教員／美術 | L74: 前 | N74: 1 | O74: 北教大旭川校 _教育 _教員／美術 _前期
A75: 73 | B75: 1030303410 | C75: 1030 | D75: 30 | E75: 34 | F75: 1 | G75: 0 | H75: 301 | I75: 北教大旭川校 | J75: 教育 | K75: 教員／保健体 | L75: 前 | N75: 1 | O75: 北教大旭川校 _教育 _教員／保健体 _前期
A76: 74 | B76: 1035302110 | C76: 1035 | D76: 30 | E76: 21 | F76: 1 | G76: 0 | H76: 316 | I76: 北教大岩見沢校 | J76: 教育 | K76: 芸術／芸術ス | L76: 前 | N76: 1 | O76: 北教大岩見沢校_教育 _芸術／芸術ス _前期
A77: 75 | B77: 1035302120 | C77: 1035 | D77: 30 | E77: 21 | F77: 2 | G77: 0 | H77: 316 | I77: 北教大岩見沢校 | J77: 教育 | K77: 芸術／芸術ス | L77: 後 | N77: 1 | O77: 北教大岩見沢校_教育 _芸術／芸術ス _後期
A78: 76 | B78: 1035302210 | C78: 1035 | D78: 30 | E78: 22 | F78: 1 | G78: 0 | H78: 316 | I78: 北教大岩見沢校 | J78: 教育 | K78: 芸術／声楽 | L78: 前 | N78: 1 | O78: 北教大岩見沢校_教育 _芸術／声楽 _前期
A79: 77 | B79: 1035302310 | C79: 1035 | D79: 30 | E79: 23 | F79: 1 | G79: 0 | H79: 316 | I79: 北教大岩見沢校 | J79: 教育 | K79: 芸術／鍵・作 | L79: 前 | N79: 1 | O79: 北教大岩見沢校_教育 _芸術／鍵・作 _前期
A80: 78 | B80: 1035302410 | C80: 1035 | D80: 30 | E80: 24 | F80: 1 | G80: 0 | H80: 316 | I80: 北教大岩見沢校 | J80: 教育 | K80: 芸術／管弦打 | L80: 前 | N80: 1 | O80: 北教大岩見沢校_教育 _芸術／管弦打 _前期
A81: 79 | B81: 1035302510 | C81: 1035 | D81: 30 | E81: 25 | F81: 1 | G81: 0 | H81: 316 | I81: 北教大岩見沢校 | J81: 教育 | K81: 芸術／音楽教 | L81: 前 | N81: 1 | O81: 北教大岩見沢校_教育 _芸術／音楽教 _前期
A82: 80 | B82: 1035302610 | C82: 1035 | D82: 30 | E82: 26 | F82: 1 | G82: 0 | H82: 316 | I82: 北教大岩見沢校 | J82: 教育 | K82: 芸術／美術デ | L82: 前 | N82: 1 | O82: 北教大岩見沢校_教育 _芸術／美術デ _前期
A83: 81 | B83: 1035302620 | C83: 1035 | D83: 30 | E83: 26 | F83: 2 | G83: 0 | H83: 316 | I83: 北教大岩見沢校 | J83: 教育 | K83: 芸術／美術デ | L83: 後 | N83: 1 | O83: 北教大岩見沢校_教育 _芸術／美術デ _後期
A84: 82 | B84: 1035302710 | C84: 1035 | D84: 30 | E84: 27 | F84: 1 | G84: 0 | H84: 316 | I84: 北教大岩見沢校 | J84: 教育 | K84: 芸術／書画工 | L84: 前 | N84: 1 | O84: 北教大岩見沢校_教育 _芸術／書画工 _前期
A85: 83 | B85: 1035302720 | C85: 1035 | D85: 30 | E85: 27 | F85: 2 | G85: 0 | H85: 316 | I85: 北教大岩見沢校 | J85: 教育 | K85: 芸術／書画工 | L85: 後 | N85: 1 | O85: 北教大岩見沢校_教育 _芸術／書画工 _後期
A86: 84 | B86: 1035302810 | C86: 1035 | D86: 30 | E86: 28 | F86: 1 | G86: 0 | H86: 316 | I86: 北教大岩見沢校 | J86: 教育 | K86: 芸術／メディ | L86: 前 | N86: 1 | O86: 北教大岩見沢校_教育 _芸術／メディ _前期
A87: 85 | B87: 1035302820 | C87: 1035 | D87: 30 | E87: 28 | F87: 2 | G87: 0 | H87: 316 | I87: 北教大岩見沢校 | J87: 教育 | K87: 芸術／メディ | L87: 後 | N87: 1 | O87: 北教大岩見沢校_教育 _芸術／メディ _後期
A88: 86 | B88: 1035302910 | C88: 1035 | D88: 30 | E88: 29 | F88: 1 | G88: 0 | H88: 316 | I88: 北教大岩見沢校 | J88: 教育 | K88: 芸術／美術文 | L88: 前 | N88: 1 | O88: 北教大岩見沢校_教育 _芸術／美術文 _前期
A89: 87 | B89: 1035302920 | C89: 1035 | D89: 30 | E89: 29 | F89: 2 | G89: 0 | H89: 316 | I89: 北教大岩見沢校 | J89: 教育 | K89: 芸術／美術文 | L89: 後 | N89: 1 | O89: 北教大岩見沢校_教育 _芸術／美術文 _後期
A90: 88 | B90: 1035303010 | C90: 1035 | D90: 30 | E90: 30 | F90: 1 | G90: 0 | H90: 316 | I90: 北教大岩見沢校 | J90: 教育 | K90: 芸術／スポー | L90: 前 | N90: 1 | O90: 北教大岩見沢校_教育 _芸術／スポー _前期
A91: 89 | B91: 1035303020 | C91: 1035 | D91: 30 | E91: 30 | F91: 2 | G91: 0 | H91: 316 | I91: 北教大岩見沢校 | J91: 教育 | K91: 芸術／スポー | L91: 後 | N91: 1 | O91: 北教大岩見沢校_教育 _芸術／スポー _後期
A92: 90 | B92: 1035303110 | C92: 1035 | D92: 30 | E92: 31 | F92: 1 | G92: 0 | H92: 316 | I92: 北教大岩見沢校 | J92: 教育 | K92: 芸術／アウト | L92: 前 | N92: 1 | O92: 北教大岩見沢校_教育 _芸術／アウト _前期
A93: 91 | B93: 1035303120 | C93: 1035 | D93: 30 | E93: 31 | F93: 2 | G93: 0 | H93: 316 | I93: 北教大岩見沢校 | J93: 教育 | K93: 芸術／アウト | L93: 後 | N93: 1 | O93: 北教大岩見沢校_教育 _芸術／アウト _後期
A94: 92 | B94: 1035303220 | C94: 1035 | D94: 30 | E94: 32 | F94: 2 | G94: 0 | H94: 316 | I94: 北教大岩見沢校 | J94: 教育 | K94: 芸術／音楽文 | L94: 後 | N94: 1 | O94: 北教大岩見沢校_教育 _芸術／音楽文 _後期
A95: 93 | B95: 1040301910 | C95: 1040 | D95: 30 | E95: 19 | F95: 1 | G95: 0 | H95: 301 | I95: 北教大釧路校 | J95: 教育 | K95: 教員養成 | L95: 前 | N95: 1 | O95: 北教大釧路校 _教育 _教員養成 _前期
A96: 94 | B96: 1040301920 | C96: 1040 | D96: 30 | E96: 19 | F96: 2 | G96: 0 | H96: 301 | I96: 北教大釧路校 | J96: 教育 | K96: 教員養成 | L96: 後 | N96: 1 | O96: 北教大釧路校 _教育 _教員養成 _後期
A97: 95 | B97: 1045302010 | C97: 1045 | D97: 30 | E97: 20 | F97: 1 | G97: 0 | H97: 313 | I97: 北教大札幌校 | J97: 教育 | K97: 教員／特別支 | L97: 前 | N97: 1 | O97: 北教大札幌校 _教育 _教員／特別支 _前期
A98: 96 | B98: 1045302020 | C98: 1045 | D98: 30 | E98: 20 | F98: 2 | G98: 0 | H98: 313 | I98: 北教大札幌校 | J98: 教育 | K98: 教員／特別支 | L98: 後 | N98: 1 | O98: 北教大札幌校 _教育 _教員／特別支 _後期
A99: 97 | B99: 1045302110 | C99: 1045 | D99: 30 | E99: 21 | F99: 1 | G99: 0 | H99: 314 | I99: 北教大札幌校 | J99: 教育 | K99: 教員／養護教 | L99: 前 | N99: 1 | O99: 北教大札幌校 _教育 _教員／養護教 _前期
A100: 98 | B100: 1045302120 | C100: 1045 | D100: 30 | E100: 21 | F100: 2 | G100: 0 | H100: 314 | I100: 北教大札幌校 | J100: 教育 | K100: 教員／養護教 | L100: 後 | N100: 1 | O100: 北教大札幌校 _教育 _教員／養護教 _後期
A101: 99 | B101: 1045302410 | C101: 1045 | D101: 30 | E101: 24 | F101: 1 | G101: 0 | H101: 301 | I101: 北教大札幌校 | J101: 教育 | K101: 教員／学校教 | L101: 前 | N101: 1 | O101: 北教大札幌校 _教育 _教員／学校教 _前期
A102: 100 | B102: 1045302420 | C102: 1045 | D102: 30 | E102: 24 | F102: 2 | G102: 0 | H102: 301 | I102: 北教大札幌校 | J102: 教育 | K102: 教員／学校教 | L102: 後 | N102: 1 | O102: 北教大札幌校 _教育 _教員／学校教 _後期
A103: 101 | B103: 1045302510 | C103: 1045 | D103: 30 | E103: 25 | F103: 1 | G103: 0 | H103: 301 | I103: 北教大札幌校 | J103: 教育 | K103: 教員／言語社 | L103: 前 | N103: 1 | O103: 北教大札幌校 _教育 _教員／言語社 _前期
A104: 102 | B104: 1045302520 | C104: 1045 | D104: 30 | E104: 25 | F104: 2 | G104: 0 | H104: 301 | I104: 北教大札幌校 | J104: 教育 | K104: 教員／言語社 | L104: 後 | N104: 1 | O104: 北教大札幌校 _教育 _教員／言語社 _後期
A105: 103 | B105: 1045302610 | C105: 1045 | D105: 30 | E105: 26 | F105: 1 | G105: 0 | H105: 301 | I105: 北教大札幌校 | J105: 教育 | K105: 教員／理数教 | L105: 前 | N105: 1 | O105: 北教大札幌校 _教育 _教員／理数教 _前期
A106: 104 | B106: 1045302620 | C106: 1045 | D106: 30 | E106: 26 | F106: 2 | G106: 0 | H106: 301 | I106: 北教大札幌校 | J106: 教育 | K106: 教員／理数教 | L106: 後 | N106: 1 | O106: 北教大札幌校 _教育 _教員／理数教 _後期
A107: 105 | B107: 1045302710 | C107: 1045 | D107: 30 | E107: 27 | F107: 1 | G107: 0 | H107: 301 | I107: 北教大札幌校 | J107: 教育 | K107: 教員／生活創 | L107: 前 | N107: 1 | O107: 北教大札幌校 _教育 _教員／生活創 _前期
A108: 106 | B108: 1045302720 | C108: 1045 | D108: 30 | E108: 27 | F108: 2 | G108: 0 | H108: 301 | I108: 北教大札幌校 | J108: 教育 | K108: 教員／生活創 | L108: 後 | N108: 1 | O108: 北教大札幌校 _教育 _教員／生活創 _後期
A109: 107 | B109: 1045302810 | C109: 1045 | D109: 30 | E109: 28 | F109: 1 | G109: 0 | H109: 301 | I109: 北教大札幌校 | J109: 教育 | K109: 教員／図画工 | L109: 前 | N109: 1 | O109: 北教大札幌校 _教育 _教員／図画工 _前期
A110: 108 | B110: 1045302910 | C110: 1045 | D110: 30 | E110: 29 | F110: 1 | G110: 0 | H110: 301 | I110: 北教大札幌校 | J110: 教育 | K110: 教員／音楽 | L110: 前 | N110: 1 | O110: 北教大札幌校 _教育 _教員／音楽 _前期
A111: 109 | B111: 1045303010 | C111: 1045 | D111: 30 | E111: 30 | F111: 1 | G111: 0 | H111: 301 | I111: 北教大札幌校 | J111: 教育 | K111: 教員／保健体 | L111: 前 | N111: 1 | O111: 北教大札幌校 _教育 _教員／保健体 _前期
A112: 110 | B112: 1050303210 | C112: 1050 | D112: 30 | E112: 32 | F112: 1 | G112: 0 | H112: 316 | I112: 北教大函館校 | J112: 教育 | K112: 国際／国際協 | L112: 前 | N112: 1 | O112: 北教大函館校 _教育 _国際／国際協 _前期
A113: 111 | B113: 1050303220 | C113: 1050 | D113: 30 | E113: 32 | F113: 2 | G113: 0 | H113: 316 | I113: 北教大函館校 | J113: 教育 | K113: 国際／国際協 | L113: 後 | N113: 1 | O113: 北教大函館校 _教育 _国際／国際協 _後期
A114: 112 | B114: 1050303310 | C114: 1050 | D114: 30 | E114: 33 | F114: 1 | G114: 0 | H114: 316 | I114: 北教大函館校 | J114: 教育 | K114: 国際／地域政 | L114: 前 | N114: 1 | O114: 北教大函館校 _教育 _国際／地域政 _前期
A115: 113 | B115: 1050303320 | C115: 1050 | D115: 30 | E115: 33 | F115: 2 | G115: 0 | H115: 316 | I115: 北教大函館校 | J115: 教育 | K115: 国際／地域政 | L115: 後 | N115: 1 | O115: 北教大函館校 _教育 _国際／地域政 _後期
A116: 114 | B116: 1050303410 | C116: 1050 | D116: 30 | E116: 34 | F116: 1 | G116: 0 | H116: 316 | I116: 北教大函館校 | J116: 教育 | K116: 国際／地域環 | L116: 前 | N116: 1 | O116: 北教大函館校 _教育 _国際／地域環 _前期
A117: 115 | B117: 1050303420 | C117: 1050 | D117: 30 | E117: 34 | F117: 2 | G117: 0 | H117: 316 | I117: 北教大函館校 | J117: 教育 | K117: 国際／地域環 | L117: 後 | N117: 1 | O117: 北教大函館校 _教育 _国際／地域環 _後期
A118: 116 | B118: 1050303510 | C118: 1050 | D118: 30 | E118: 35 | F118: 1 | G118: 0 | H118: 301 | I118: 北教大函館校 | J118: 教育 | K118: 国際／地域教 | L118: 前 | N118: 1 | O118: 北教大函館校 _教育 _国際／地域教 _前期
A119: 117 | B119: 1050303520 | C119: 1050 | D119: 30 | E119: 35 | F119: 2 | G119: 0 | H119: 301 | I119: 北教大函館校 | J119: 教育 | K119: 国際／地域教 | L119: 後 | N119: 1 | O119: 北教大函館校 _教育 _国際／地域教 _後期
A120: 118 | B120: 1055470110 | C120: 1055 | D120: 47 | E120: 1 | F120: 1 | G120: 0 | H120: 554 | I120: 室蘭工大 | J120: 理工 | K120: 創造工 | L120: 前 | N120: 1 | O120: 室蘭工大 _理工 _創造工 _前期
A121: 119 | B121: 1055470120 | C121: 1055 | D121: 47 | E121: 1 | F121: 2 | G121: 0 | H121: 554 | I121: 室蘭工大 | J121: 理工 | K121: 創造工 | L121: 後 | N121: 1 | O121: 室蘭工大 _理工 _創造工 _後期
A122: 120 | B122: 1055470210 | C122: 1055 | D122: 47 | E122: 2 | F122: 1 | G122: 0 | H122: 556 | I122: 室蘭工大 | J122: 理工 | K122: システム理化 | L122: 前 | N122: 1 | O122: 室蘭工大 _理工 _システム理化 _前期
A123: 121 | B123: 1055470220 | C123: 1055 | D123: 47 | E123: 2 | F123: 2 | G123: 0 | H123: 556 | I123: 室蘭工大 | J123: 理工 | K123: システム理化 | L123: 後 | N123: 1 | O123: 室蘭工大 _理工 _システム理化 _後期
A124: 122 | B124: 1055530110 | C124: 1055 | D124: 53 | E124: 1 | F124: 1 | G124: 0 | H124: 551 | I124: 室蘭工大 | J124: 理工夜 | K124: 創造工 | L124: 前 | N124: 1 | O124: 室蘭工大 _理工夜 _創造工 _前期
A125: 123 | B125: 1055530120 | C125: 1055 | D125: 53 | E125: 1 | F125: 2 | G125: 0 | H125: 551 | I125: 室蘭工大 | J125: 理工夜 | K125: 創造工 | L125: 後 | N125: 1 | O125: 室蘭工大 _理工夜 _創造工 _後期
A126: 124 | B126: 1060270110 | C126: 1060 | D126: 27 | E126: 1 | F126: 1 | G126: 0 | H126: 106 | I126: 弘前大 | J126: 人文社会 | K126: 文化創生 | L126: 前 | N126: 1 | O126: 弘前大 _人文社会_文化創生 _前期
A127: 125 | B127: 1060270120 | C127: 1060 | D127: 27 | E127: 1 | F127: 2 | G127: 0 | H127: 106 | I127: 弘前大 | J127: 人文社会 | K127: 文化創生 | L127: 後 | N127: 1 | O127: 弘前大 _人文社会_文化創生 _後期
A128: 126 | B128: 1060270211 | C128: 1060 | D128: 27 | E128: 2 | F128: 1 | G128: 1 | H128: 241 | I128: 弘前大 | J128: 人文社会 | K128: 社会経営 | L128: 前 | M128: 国語 | N128: 1 | O128: 弘前大 _人文社会_社会経営 国語 _前期
A129: 127 | B129: 1060270212 | C129: 1060 | D129: 27 | E129: 2 | F129: 1 | G129: 2 | H129: 241 | I129: 弘前大 | J129: 人文社会 | K129: 社会経営 | L129: 前 | M129: 数学 | N129: 1 | O129: 弘前大 _人文社会_社会経営 数学 _前期
A130: 128 | B130: 1060270220 | C130: 1060 | D130: 27 | E130: 2 | F130: 2 | G130: 0 | H130: 241 | I130: 弘前大 | J130: 人文社会 | K130: 社会経営 | L130: 後 | N130: 1 | O130: 弘前大 _人文社会_社会経営 _後期
A131: 129 | B131: 1060301510 | C131: 1060 | D131: 30 | E131: 15 | F131: 1 | G131: 0 | H131: 314 | I131: 弘前大 | J131: 教育 | K131: 養護教諭 | L131: 前 | N131: 1 | O131: 弘前大 _教育 _養護教諭 _前期
A132: 130 | B132: =G132+F132*10+E132*100+D132*10000+C132*1000000 -> 1060304810 | C132: 1060 | D132: 30 | E132: 48 | F132: 1 | G132: 0 | H132: 313 | I132: 弘前大 | J132: 教育 | K132: 学校／特別支 | L132: 前 | N132: 1 | O132: =I132&"_"&J132&"_"&K132&M132&"_"&L132&"期" -> 弘前大 _教育 _学校／特別支 _前期
A133: 131 | B133: 1060304910 | C133: 1060 | D133: 30 | E133: 49 | F133: 1 | G133: 0 | H133: 301 | I133: 弘前大 | J133: 教育 | K133: 学校／小学校 | L133: 前 | N133: 1 | O133: 弘前大 _教育 _学校／小学校 _前期
A134: 132 | B134: 1060304920 | C134: 1060 | D134: 30 | E134: 49 | F134: 2 | G134: 0 | H134: 301 | I134: 弘前大 | J134: 教育 | K134: 学校／小学校 | L134: 後 | N134: 1 | O134: 弘前大 _教育 _学校／小学校 _後期
A135: 133 | B135: 1060305010 | C135: 1060 | D135: 30 | E135: 50 | F135: 1 | G135: 0 | H135: 302 | I135: 弘前大 | J135: 教育 | K135: 学校／国語 | L135: 前 | N135: 1 | O135: 弘前大 _教育 _学校／国語 _前期
A136: 134 | B136: 1060305110 | C136: 1060 | D136: 30 | E136: 51 | F136: 1 | G136: 0 | H136: 305 | I136: 弘前大 | J136: 教育 | K136: 学校／社会 | L136: 前 | N136: 1 | O136: 弘前大 _教育 _学校／社会 _前期
A137: 135 | B137: 1060305210 | C137: 1060 | D137: 30 | E137: 52 | F137: 1 | G137: 0 | H137: 303 | I137: 弘前大 | J137: 教育 | K137: 学校／数学 | L137: 前 | N137: 1 | O137: 弘前大 _教育 _学校／数学 _前期
A138: 136 | B138: 1060305310 | C138: 1060 | D138: 30 | E138: 53 | F138: 1 | G138: 0 | H138: 306 | I138: 弘前大 | J138: 教育 | K138: 学校／理科 | L138: 前 | N138: 1 | O138: 弘前大 _教育 _学校／理科 _前期
A139: 137 | B139: 1060305410 | C139: 1060 | D139: 30 | E139: 54 | F139: 1 | G139: 0 | H139: 309 | I139: 弘前大 | J139: 教育 | K139: 学校／音楽 | L139: 前 | N139: 1 | O139: 弘前大 _教育 _学校／音楽 _前期
A140: 138 | B140: 1060305510 | C140: 1060 | D140: 30 | E140: 55 | F140: 1 | G140: 0 | H140: 310 | I140: 弘前大 | J140: 教育 | K140: 学校／美術 | L140: 前 | N140: 1 | O140: 弘前大 _教育 _学校／美術 _前期
A141: 139 | B141: 1060305610 | C141: 1060 | D141: 30 | E141: 56 | F141: 1 | G141: 0 | H141: 311 | I141: 弘前大 | J141: 教育 | K141: 学校／保体 | L141: 前 | N141: 1 | O141: 弘前大 _教育 _学校／保体 _前期
A142: 140 | B142: 1060305710 | C142: 1060 | D142: 30 | E142: 57 | F142: 1 | G142: 0 | H142: 307 | I142: 弘前大 | J142: 教育 | K142: 学校／技術 | L142: 前 | N142: 1 | O142: 弘前大 _教育 _学校／技術 _前期
A143: 141 | B143: 1060305810 | C143: 1060 | D143: 30 | E143: 58 | F143: 1 | G143: 0 | H143: 308 | I143: 弘前大 | J143: 教育 | K143: 学校／家庭 | L143: 前 | N143: 1 | O143: 弘前大 _教育 _学校／家庭 _前期
A144: 142 | B144: 1060305910 | C144: 1060 | D144: 30 | E144: 59 | F144: 1 | G144: 0 | H144: 304 | I144: 弘前大 | J144: 教育 | K144: 学校／英語 | L144: 前 | N144: 1 | O144: 弘前大 _教育 _学校／英語 _前期
A145: 143 | B145: 1060470710 | C145: 1060 | D145: 47 | E145: 7 | F145: 1 | G145: 0 | H145: 555 | I145: 弘前大 | J145: 理工 | K145: 物質創成化 | L145: 前 | N145: 1 | O145: 弘前大 _理工 _物質創成化 _前期
A146: 144 | B146: 1060470720 | C146: 1060 | D146: 47 | E146: 7 | F146: 2 | G146: 0 | H146: 555 | I146: 弘前大 | J146: 理工 | K146: 物質創成化 | L146: 後 | N146: 1 | O146: 弘前大 _理工 _物質創成化 _後期
A147: 145 | B147: 1060470810 | C147: 1060 | D147: 47 | E147: 8 | F147: 1 | G147: 0 | H147: 552 | I147: 弘前大 | J147: 理工 | K147: 電子情報工 | L147: 前 | N147: 1 | O147: 弘前大 _理工 _電子情報工 _前期
A148: 146 | B148: 1060470820 | C148: 1060 | D148: 47 | E148: 8 | F148: 2 | G148: 0 | H148: 552 | I148: 弘前大 | J148: 理工 | K148: 電子情報工 | L148: 後 | N148: 1 | O148: 弘前大 _理工 _電子情報工 _後期
A149: 147 | B149: 1060470911 | C149: 1060 | D149: 47 | E149: 9 | F149: 1 | G149: 1 | H149: 501 | I149: 弘前大 | J149: 理工 | K149: 数物科学 | L149: 前 | M149: 数学 | N149: 1 | O149: 弘前大 _理工 _数物科学 数学 _前期
A150: 148 | B150: 1060470912 | C150: 1060 | D150: 47 | E150: 9 | F150: 1 | G150: 2 | H150: 501 | I150: 弘前大 | J150: 理工 | K150: 数物科学 | L150: 前 | M150: 数理 | N150: 1 | O150: 弘前大 _理工 _数物科学 数理 _前期
A151: 149 | B151: 1060470921 | C151: 1060 | D151: 47 | E151: 9 | F151: 2 | G151: 1 | H151: 501 | I151: 弘前大 | J151: 理工 | K151: 数物科学 | L151: 後 | M151: 数学 | N151: 1 | O151: 弘前大 _理工 _数物科学 数学 _後期
A152: 150 | B152: 1060470922 | C152: 1060 | D152: 47 | E152: 9 | F152: 2 | G152: 2 | H152: 501 | I152: 弘前大 | J152: 理工 | K152: 数物科学 | L152: 後 | M152: 理科 | N152: 1 | O152: 弘前大 _理工 _数物科学 理科 _後期
A153: 151 | B153: 1060471010 | C153: 1060 | D153: 47 | E153: 10 | F153: 1 | G153: 0 | H153: 507 | I153: 弘前大 | J153: 理工 | K153: 地球環境防災 | L153: 前 | N153: 1 | O153: 弘前大 _理工 _地球環境防災 _前期
A154: 152 | B154: 1060471020 | C154: 1060 | D154: 47 | E154: 10 | F154: 2 | G154: 0 | H154: 507 | I154: 弘前大 | J154: 理工 | K154: 地球環境防災 | L154: 後 | N154: 1 | O154: 弘前大 _理工 _地球環境防災 _後期
A155: 153 | B155: 1060471110 | C155: 1060 | D155: 47 | E155: 11 | F155: 1 | G155: 0 | H155: 551 | I155: 弘前大 | J155: 理工 | K155: 機械科学 | L155: 前 | N155: 1 | O155: 弘前大 _理工 _機械科学 _前期
A156: 154 | B156: 1060471120 | C156: 1060 | D156: 47 | E156: 11 | F156: 2 | G156: 0 | H156: 551 | I156: 弘前大 | J156: 理工 | K156: 機械科学 | L156: 後 | N156: 1 | O156: 弘前大 _理工 _機械科学 _後期
A157: 155 | B157: 1060471210 | C157: 1060 | D157: 47 | E157: 12 | F157: 1 | G157: 0 | H157: 562 | I157: 弘前大 | J157: 理工 | K157: 自然エネルギ | L157: 前 | N157: 1 | O157: 弘前大 _理工 _自然エネルギ _前期
A158: 156 | B158: 1060471220 | C158: 1060 | D158: 47 | E158: 12 | F158: 2 | G158: 0 | H158: 562 | I158: 弘前大 | J158: 理工 | K158: 自然エネルギ | L158: 後 | N158: 1 | O158: 弘前大 _理工 _自然エネルギ _後期
A159: 157 | B159: 1060550111 | C159: 1060 | D159: 55 | E159: 1 | F159: 1 | G159: 1 | H159: 601 | I159: 弘前大 | J159: 医 | K159: 医 | L159: 前 | N159: 1 | O159: 弘前大 _医 _医 _前期
A160: 158 | B160: 1060550112 | C160: 1060 | D160: 55 | E160: 1 | F160: 1 | G160: 2 | H160: 601 | I160: 弘前大 | J160: 医 | K160: 医 | L160: 前 | M160: 定着枠 | N160: 1 | O160: 弘前大 _医 _医 定着枠_前期
A161: 159 | B161: 1060550310 | C161: 1060 | D161: 55 | E161: 3 | F161: 1 | G161: 0 | H161: 651 | I161: 弘前大 | J161: 医 | K161: 保健／看護学 | L161: 前 | N161: 1 | O161: 弘前大 _医 _保健／看護学 _前期
A162: 160 | B162: 1060550410 | C162: 1060 | D162: 55 | E162: 4 | F162: 1 | G162: 0 | H162: 657 | I162: 弘前大 | J162: 医 | K162: 保健／放射線 | L162: 前 | N162: 1 | O162: 弘前大 _医 _保健／放射線 _前期
A163: 161 | B163: 1060550510 | C163: 1060 | D163: 55 | E163: 5 | F163: 1 | G163: 0 | H163: 658 | I163: 弘前大 | J163: 医 | K163: 保健／検査技 | L163: 前 | N163: 1 | O163: 弘前大 _医 _保健／検査技 _前期
A164: 162 | B164: 1060550610 | C164: 1060 | D164: 55 | E164: 6 | F164: 1 | G164: 0 | H164: 655 | I164: 弘前大 | J164: 医 | K164: 保健／理学療 | L164: 前 | N164: 1 | O164: 弘前大 _医 _保健／理学療 _前期
A165: 163 | B165: 1060550710 | C165: 1060 | D165: 55 | E165: 7 | F165: 1 | G165: 0 | H165: 656 | I165: 弘前大 | J165: 医 | K165: 保健／作業療 | L165: 前 | N165: 1 | O165: 弘前大 _医 _保健／作業療 _前期
A166: 164 | B166: 1060740510 | C166: 1060 | D166: 74 | E166: 5 | F166: 1 | G166: 0 | H166: 504 | I166: 弘前大 | J166: 農学生命 | K166: 生物 | L166: 前 | N166: 1 | O166: 弘前大 _農学生命_生物 _前期
A167: 165 | B167: 1060740520 | C167: 1060 | D167: 74 | E167: 5 | F167: 2 | G167: 0 | H167: 504 | I167: 弘前大 | J167: 農学生命 | K167: 生物 | L167: 後 | N167: 1 | O167: 弘前大 _農学生命_生物 _後期
A168: 166 | B168: 1060740610 | C168: 1060 | D168: 74 | E168: 6 | F168: 1 | G168: 0 | H168: 564 | I168: 弘前大 | J168: 農学生命 | K168: 分子生命科学 | L168: 前 | N168: 1 | O168: 弘前大 _農学生命_分子生命科学 _前期
A169: 167 | B169: 1060740620 | C169: 1060 | D169: 74 | E169: 6 | F169: 2 | G169: 0 | H169: 564 | I169: 弘前大 | J169: 農学生命 | K169: 分子生命科学 | L169: 後 | N169: 1 | O169: 弘前大 _農学生命_分子生命科学 _後期
A170: 168 | B170: 1060740710 | C170: 1060 | D170: 74 | E170: 7 | F170: 1 | G170: 0 | H170: 703 | I170: 弘前大 | J170: 農学生命 | K170: 食料資源 | L170: 前 | N170: 1 | O170: 弘前大 _農学生命_食料資源 _前期
A171: 169 | B171: 1060740720 | C171: 1060 | D171: 74 | E171: 7 | F171: 2 | G171: 0 | H171: 703 | I171: 弘前大 | J171: 農学生命 | K171: 食料資源 | L171: 後 | N171: 1 | O171: 弘前大 _農学生命_食料資源 _後期
A172: 170 | B172: 1060740810 | C172: 1060 | D172: 74 | E172: 8 | F172: 1 | G172: 0 | H172: 701 | I172: 弘前大 | J172: 農学生命 | K172: 国際園芸農 | L172: 前 | N172: 1 | O172: 弘前大 _農学生命_国際園芸農 _前期
A173: 171 | B173: 1060740820 | C173: 1060 | D173: 74 | E173: 8 | F173: 2 | G173: 0 | H173: 701 | I173: 弘前大 | J173: 農学生命 | K173: 国際園芸農 | L173: 後 | N173: 1 | O173: 弘前大 _農学生命_国際園芸農 _後期
A174: 172 | B174: 1060740910 | C174: 1060 | D174: 74 | E174: 9 | F174: 1 | G174: 0 | H174: 704 | I174: 弘前大 | J174: 農学生命 | K174: 地域環境工 | L174: 前 | N174: 1 | O174: 弘前大 _農学生命_地域環境工 _前期
A175: 173 | B175: 1060740920 | C175: 1060 | D175: 74 | E175: 9 | F175: 2 | G175: 0 | H175: 704 | I175: 弘前大 | J175: 農学生命 | K175: 地域環境工 | L175: 後 | N175: 1 | O175: 弘前大 _農学生命_地域環境工 _後期
A176: 174 | B176: 1065270610 | C176: 1065 | D176: 27 | E176: 6 | F176: 1 | G176: 0 | H176: 106 | I176: 岩手大 | J176: 人文社会 | K176: 人間文化 | L176: 前 | N176: 1 | O176: 岩手大 _人文社会_人間文化 _前期
A177: 175 | B177: 1065270620 | C177: 1065 | D177: 27 | E177: 6 | F177: 2 | G177: 0 | H177: 106 | I177: 岩手大 | J177: 人文社会 | K177: 人間文化 | L177: 後 | N177: 1 | O177: 岩手大 _人文社会_人間文化 _後期
A178: 176 | B178: 1065270710 | C178: 1065 | D178: 27 | E178: 7 | F178: 1 | G178: 0 | H178: 202 | I178: 岩手大 | J178: 人文社会 | K178: 地域政策 | L178: 前 | N178: 1 | O178: 岩手大 _人文社会_地域政策 _前期
A179: 177 | B179: 1065270720 | C179: 1065 | D179: 27 | E179: 7 | F179: 2 | G179: 0 | H179: 202 | I179: 岩手大 | J179: 人文社会 | K179: 地域政策 | L179: 後 | N179: 1 | O179: 岩手大 _人文社会_地域政策 _後期
A180: 178 | B180: 1065301510 | C180: 1065 | D180: 30 | E180: 15 | F180: 1 | G180: 0 | H180: 301 | I180: 岩手大 | J180: 教育 | K180: 学校／小学校 | L180: 前 | N180: 1 | O180: 岩手大 _教育 _学校／小学校 _前期
A181: 179 | B181: 1065301520 | C181: 1065 | D181: 30 | E181: 15 | F181: 2 | G181: 0 | H181: 301 | I181: 岩手大 | J181: 教育 | K181: 学校／小学校 | L181: 後 | N181: 1 | O181: 岩手大 _教育 _学校／小学校 _後期
A182: 180 | B182: 1065302710 | C182: 1065 | D182: 30 | E182: 27 | F182: 1 | G182: 0 | H182: 313 | I182: 岩手大 | J182: 教育 | K182: 学校／特別支 | L182: 前 | N182: 1 | O182: 岩手大 _教育 _学校／特別支 _前期
A183: 181 | B183: 1065302720 | C183: 1065 | D183: 30 | E183: 27 | F183: 2 | G183: 0 | H183: 313 | I183: 岩手大 | J183: 教育 | K183: 学校／特別支 | L183: 後 | N183: 1 | O183: 岩手大 _教育 _学校／特別支 _後期
A184: 182 | B184: 1065304010 | C184: 1065 | D184: 30 | E184: 40 | F184: 1 | G184: 0 | H184: 302 | I184: 岩手大 | J184: 教育 | K184: 学校／国語 | L184: 前 | N184: 1 | O184: 岩手大 _教育 _学校／国語 _前期
A185: 183 | B185: 1065304110 | C185: 1065 | D185: 30 | E185: 41 | F185: 1 | G185: 0 | H185: 305 | I185: 岩手大 | J185: 教育 | K185: 学校／社会 | L185: 前 | N185: 1 | O185: 岩手大 _教育 _学校／社会 _前期
A186: 184 | B186: 1065304210 | C186: 1065 | D186: 30 | E186: 42 | F186: 1 | G186: 0 | H186: 307 | I186: 岩手大 | J186: 教育 | K186: 学校／技術 | L186: 前 | N186: 1 | O186: 岩手大 _教育 _学校／技術 _前期
A187: 185 | B187: 1065304310 | C187: 1065 | D187: 30 | E187: 43 | F187: 1 | G187: 0 | H187: 308 | I187: 岩手大 | J187: 教育 | K187: 学校／家庭 | L187: 前 | N187: 1 | O187: 岩手大 _教育 _学校／家庭 _前期
A188: 186 | B188: 1065304410 | C188: 1065 | D188: 30 | E188: 44 | F188: 1 | G188: 0 | H188: 304 | I188: 岩手大 | J188: 教育 | K188: 学校／英語 | L188: 前 | N188: 1 | O188: 岩手大 _教育 _学校／英語 _前期
A189: 187 | B189: 1065304510 | C189: 1065 | D189: 30 | E189: 45 | F189: 1 | G189: 0 | H189: 309 | I189: 岩手大 | J189: 教育 | K189: 学校／音楽 | L189: 前 | N189: 1 | O189: 岩手大 _教育 _学校／音楽 _前期
A190: 188 | B190: 1065304610 | C190: 1065 | D190: 30 | E190: 46 | F190: 1 | G190: 0 | H190: 310 | I190: 岩手大 | J190: 教育 | K190: 学校／美術 | L190: 前 | N190: 1 | O190: 岩手大 _教育 _学校／美術 _前期
A191: 189 | B191: 1065304710 | C191: 1065 | D191: 30 | E191: 47 | F191: 1 | G191: 0 | H191: 311 | I191: 岩手大 | J191: 教育 | K191: 学校／保健体 | L191: 前 | N191: 1 | O191: 岩手大 _教育 _学校／保健体 _前期
A192: 190 | B192: 1065304810 | C192: 1065 | D192: 30 | E192: 48 | F192: 1 | G192: 0 | H192: 303 | I192: 岩手大 | J192: 教育 | K192: 学校／数学 | L192: 前 | N192: 1 | O192: 岩手大 _教育 _学校／数学 _前期
A193: 191 | B193: 1065304910 | C193: 1065 | D193: 30 | E193: 49 | F193: 1 | G193: 0 | H193: 306 | I193: 岩手大 | J193: 教育 | K193: 学校／理科 | L193: 前 | N193: 1 | O193: 岩手大 _教育 _学校／理科 _前期
A194: 192 | B194: 1065470410 | C194: 1065 | D194: 47 | E194: 4 | F194: 1 | G194: 0 | H194: 555 | I194: 岩手大 | J194: 理工 | K194: 化学／化学 | L194: 前 | N194: 1 | O194: 岩手大 _理工 _化学／化学 _前期
A195: 193 | B195: 1065470420 | C195: 1065 | D195: 47 | E195: 4 | F195: 2 | G195: 0 | H195: 555 | I195: 岩手大 | J195: 理工 | K195: 化学／化学 | L195: 後 | N195: 1 | O195: 岩手大 _理工 _化学／化学 _後期
A196: 194 | B196: =G196+F196*10+E196*100+D196*10000+C196*1000000 -> 1065470510 | C196: 1065 | D196: 47 | E196: 5 | F196: 1 | G196: 0 | H196: 564 | I196: 岩手大 | J196: 理工 | K196: 化学／生命 | L196: 前 | N196: 1 | O196: =I196&"_"&J196&"_"&K196&M196&"_"&L196&"期" -> 岩手大 _理工 _化学／生命 _前期
A197: 195 | B197: 1065470520 | C197: 1065 | D197: 47 | E197: 5 | F197: 2 | G197: 0 | H197: 564 | I197: 岩手大 | J197: 理工 | K197: 化学／生命 | L197: 後 | N197: 1 | O197: 岩手大 _理工 _化学／生命 _後期
A198: 196 | B198: 1065470610 | C198: 1065 | D198: 47 | E198: 6 | F198: 1 | G198: 0 | H198: 556 | I198: 岩手大 | J198: 理工 | K198: 物理／数理物 | L198: 前 | N198: 1 | O198: 岩手大 _理工 _物理／数理物 _前期
A199: 197 | B199: 1065470620 | C199: 1065 | D199: 47 | E199: 6 | F199: 2 | G199: 0 | H199: 556 | I199: 岩手大 | J199: 理工 | K199: 物理／数理物 | L199: 後 | N199: 1 | O199: 岩手大 _理工 _物理／数理物 _後期
A200: 198 | B200: 1065470710 | C200: 1065 | D200: 47 | E200: 7 | F200: 1 | G200: 0 | H200: 558 | I200: 岩手大 | J200: 理工 | K200: 物理／マテリ | L200: 前 | N200: 1 | O200: 岩手大 _理工 _物理／マテリ _前期
... 3375 more rows

Sheet 河合塾貼り付け
A1: 河合 | B1: ２．オレンジの部分に河合を貼り、A列とH列の行数を調節する。
B2: 大学コード(10桁または5桁) | C2: 大学名 | D2: 学部名 | E2: 学科名 | F2: 日程方式コード | G2: 日程方式名
A3: 1 | B3: 10001 | C3: 旭川医科 | D3: 医 | E3: 医 | F3: 11 | G3: 前期 | H3: =C3&"大"&"_"&D3&"_"&E3&"_"&G3 -> 旭川医科大_医_医_前期
A4: 2 | B4: 10002 | C4: 旭川医科 | D4: 医 | E4: 看護 | F4: 11 | G4: 前期 | H4: =C4&"大"&"_"&D4&"_"&E4&"_"&G4 -> 旭川医科大_医_看護_前期
A5: 3 | B5: 10003 | C5: 旭川医科 | D5: 医 | E5: 医 | F5: 13 | G5: 後期 | H5: 旭川医科大_医_医_後期
A6: 4 | B6: 10004 | C6: 旭川医科 | D6: 医 | E6: 看護 | F6: 13 | G6: 後期 | H6: 旭川医科大_医_看護_後期
A7: 5 | B7: 10021 | C7: 小樽商科 | D7: 商 | E7: <E> | F7: 11 | G7: 前期 | H7: 小樽商科大_商_<E>_前期
A8: 6 | B8: 10022 | C8: 小樽商科 | D8: 商 | E8: <E> | F8: 13 | G8: 後期 | H8: 小樽商科大_商_<E>_後期
A9: 7 | B9: 10023 | C9: 小樽商科 | D9: 商夜 | E9: <E> | F9: 11 | G9: 前期 | H9: 小樽商科大_商夜_<E>_前期
A10: 8 | B10: 10041 | C10: 帯広畜産 | D10: 畜産 | E10: 共同獣医学 | F10: 11 | G10: 前期 | H10: 帯広畜産大_畜産_共同獣医学_前期
A11: 9 | B11: 10042 | C11: 帯広畜産 | D11: 畜産 | E11: 畜産科学 | F11: 11 | G11: 前期 | H11: 帯広畜産大_畜産_畜産科学_前期
A12: 10 | B12: 10043 | C12: 帯広畜産 | D12: 畜産 | E12: 共同獣医学 | F12: 13 | G12: 後期 | H12: 帯広畜産大_畜産_共同獣医学_後期
A13: 11 | B13: 10044 | C13: 帯広畜産 | D13: 畜産 | E13: 畜産科学 | F13: 13 | G13: 後期 | H13: 帯広畜産大_畜産_畜産科学_後期
A14: 12 | B14: 10061 | C14: 北見工業 | D14: 工 | E14: 地球環境工 | F14: 11 | G14: 前期 | H14: 北見工業大_工_地球環境工_前期
A15: 13 | B15: 10062 | C15: 北見工業 | D15: 工 | E15: 地域未来デザイン工 | F15: 11 | G15: 前期 | H15: 北見工業大_工_地域未来デザイン工_前期
A16: 14 | B16: 10063 | C16: 北見工業 | D16: 工 | E16: 地球環境工 | F16: 13 | G16: 後期 | H16: 北見工業大_工_地球環境工_後期
A17: 15 | B17: 10064 | C17: 北見工業 | D17: 工 | E17: 地域未来デザイン工 | F17: 13 | G17: 後期 | H17: 北見工業大_工_地域未来デザイン工_後期
A18: 16 | B18: 10181 | C18: 北海道 | D18: 総合入試文系 | E18: <E> | F18: 11 | G18: 前期 | H18: 北海道大_総合入試文系_<E>_前期
A19: 17 | B19: 10182 | C19: 北海道 | D19: 文 | E19: 人文科学 | F19: 11 | G19: 前期 | H19: 北海道大_文_人文科学_前期
A20: 18 | B20: 10183 | C20: 北海道 | D20: 文 | E20: 人文科学 | F20: 13 | G20: 後期 | H20: 北海道大_文_人文科学_後期
A21: 19 | B21: 10184 | C21: 北海道 | D21: 教育 | E21: 教育 | F21: 11 | G21: 前期 | H21: 北海道大_教育_教育_前期
A22: 20 | B22: 10185 | C22: 北海道 | D22: 教育 | E22: 教育 | F22: 13 | G22: 後期 | H22: 北海道大_教育_教育_後期
A23: 21 | B23: 10186 | C23: 北海道 | D23: 法 | E23: 法学 | F23: 11 | G23: 前期 | H23: 北海道大_法_法学_前期
A24: 22 | B24: 10187 | C24: 北海道 | D24: 法 | E24: 法学 | F24: 13 | G24: 後期 | H24: 北海道大_法_法学_後期
A25: 23 | B25: 10188 | C25: 北海道 | D25: 経済 | E25: <E> | F25: 11 | G25: 前期 | H25: 北海道大_経済_<E>_前期
A26: 24 | B26: 10189 | C26: 北海道 | D26: 経済 | E26: <E> | F26: 13 | G26: 後期 | H26: 北海道大_経済_<E>_後期
A27: 25 | B27: 10190 | C27: 北海道 | D27: 総合入試理系 | E27: 数学重点 | F27: 11 | G27: 前期 | H27: 北海道大_総合入試理系_数学重点_前期
A28: 26 | B28: 10191 | C28: 北海道 | D28: 総合入試理系 | E28: 物理重点 | F28: 11 | G28: 前期 | H28: 北海道大_総合入試理系_物理重点_前期
A29: 27 | B29: 10192 | C29: 北海道 | D29: 総合入試理系 | E29: 化学重点 | F29: 11 | G29: 前期 | H29: 北海道大_総合入試理系_化学重点_前期
A30: 28 | B30: 10193 | C30: 北海道 | D30: 総合入試理系 | E30: 生物重点 | F30: 11 | G30: 前期 | H30: 北海道大_総合入試理系_生物重点_前期
A31: 29 | B31: 10194 | C31: 北海道 | D31: 総合入試理系 | E31: 総合科学 | F31: 11 | G31: 前期 | H31: 北海道大_総合入試理系_総合科学_前期
A32: 30 | B32: 10195 | C32: 北海道 | D32: 理 | E32: 数学 | F32: 13 | G32: 後期 | H32: 北海道大_理_数学_後期
A33: 31 | B33: 10196 | C33: 北海道 | D33: 理 | E33: 物理 | F33: 13 | G33: 後期 | H33: 北海道大_理_物理_後期
A34: 32 | B34: 10197 | C34: 北海道 | D34: 理 | E34: 化学 | F34: 13 | G34: 後期 | H34: 北海道大_理_化学_後期
A35: 33 | B35: 10198 | C35: 北海道 | D35: 理 | E35: 生物／生物学 | F35: 13 | G35: 後期 | H35: 北海道大_理_生物／生物学_後期
A36: 34 | B36: 10199 | C36: 北海道 | D36: 理 | E36: 生物／高分子機能学 | F36: 13 | G36: 後期 | H36: 北海道大_理_生物／高分子機能学_後期
A37: 35 | B37: 10200 | C37: 北海道 | D37: 理 | E37: 地球惑星科学 | F37: 13 | G37: 後期 | H37: 北海道大_理_地球惑星科学_後期
A38: 36 | B38: 10201 | C38: 北海道 | D38: 工 | E38: 応用理工系 | F38: 13 | G38: 後期 | H38: 北海道大_工_応用理工系_後期
A39: 37 | B39: 10202 | C39: 北海道 | D39: 工 | E39: 情報エレクトロニクス | F39: 13 | G39: 後期 | H39: 北海道大_工_情報エレクトロニクス_後期
A40: 38 | B40: 10203 | C40: 北海道 | D40: 工 | E40: 機械知能工 | F40: 13 | G40: 後期 | H40: 北海道大_工_機械知能工_後期
A41: 39 | B41: 10204 | C41: 北海道 | D41: 工 | E41: 環境社会工 | F41: 13 | G41: 後期 | H41: 北海道大_工_環境社会工_後期
A42: 40 | B42: 10205 | C42: 北海道 | D42: 農 | E42: <E> | F42: 13 | G42: 後期 | H42: 北海道大_農_<E>_後期
A43: 41 | B43: 10206 | C43: 北海道 | D43: 獣医 | E43: 共同獣医学 | F43: 11 | G43: 前期 | H43: 北海道大_獣医_共同獣医学_前期
A44: 42 | B44: 10207 | C44: 北海道 | D44: 獣医 | E44: 共同獣医学 | F44: 13 | G44: 後期 | H44: 北海道大_獣医_共同獣医学_後期
A45: 43 | B45: 10208 | C45: 北海道 | D45: 水産 | E45: <E> | F45: 11 | G45: 前期 | H45: 北海道大_水産_<E>_前期
A46: 44 | B46: 10209 | C46: 北海道 | D46: 水産 | E46: <E> | F46: 13 | G46: 後期 | H46: 北海道大_水産_<E>_後期
A47: 45 | B47: 10210 | C47: 北海道 | D47: 医 | E47: 医 | F47: 11 | G47: 前期 | H47: 北海道大_医_医_前期
A48: 46 | B48: 10211 | C48: 北海道 | D48: 医 | E48: 保健／看護学 | F48: 11 | G48: 前期 | H48: 北海道大_医_保健／看護学_前期
A49: 47 | B49: 10212 | C49: 北海道 | D49: 医 | E49: 保健／放射線技術科学 | F49: 11 | G49: 前期 | H49: 北海道大_医_保健／放射線技術科学_前期
A50: 48 | B50: 10213 | C50: 北海道 | D50: 医 | E50: 保健／検査技術科学 | F50: 11 | G50: 前期 | H50: 北海道大_医_保健／検査技術科学_前期
A51: 49 | B51: 10214 | C51: 北海道 | D51: 医 | E51: 保健／理学療法学 | F51: 11 | G51: 前期 | H51: 北海道大_医_保健／理学療法学_前期
A52: 50 | B52: 10215 | C52: 北海道 | D52: 医 | E52: 保健／作業療法学 | F52: 11 | G52: 前期 | H52: 北海道大_医_保健／作業療法学_前期
A53: 51 | B53: 10216 | C53: 北海道 | D53: 医 | E53: 保健／放射線技術科学 | F53: 13 | G53: 後期 | H53: 北海道大_医_保健／放射線技術科学_後期
A54: 52 | B54: 10217 | C54: 北海道 | D54: 医 | E54: 保健／検査技術科学 | F54: 13 | G54: 後期 | H54: 北海道大_医_保健／検査技術科学_後期
A55: 53 | B55: 10218 | C55: 北海道 | D55: 医 | E55: 保健／理学療法学 | F55: 13 | G55: 後期 | H55: 北海道大_医_保健／理学療法学_後期
A56: 54 | B56: 10219 | C56: 北海道 | D56: 歯 | E56: 歯 | F56: 11 | G56: 前期 | H56: 北海道大_歯_歯_前期
A57: 55 | B57: 10220 | C57: 北海道 | D57: 歯 | E57: 歯 | F57: 13 | G57: 後期 | H57: 北海道大_歯_歯_後期
A58: 56 | B58: 10221 | C58: 北海道 | D58: 薬 | E58: <E> | F58: 13 | G58: 後期 | H58: 北海道大_薬_<E>_後期
A59: 57 | B59: 10271 | C59: 北教 | D59: 教育札幌校 | E59: 教員／学校教育 | F59: 11 | G59: 前期 | H59: 北教大_教育札幌校_教員／学校教育_前期
A60: 58 | B60: 10272 | C60: 北教 | D60: 教育札幌校 | E60: 教員／特別支援教育 | F60: 11 | G60: 前期 | H60: 北教大_教育札幌校_教員／特別支援教育_前期
A61: 59 | B61: 10273 | C61: 北教 | D61: 教育札幌校 | E61: 教員／言語社会教育 | F61: 11 | G61: 前期 | H61: 北教大_教育札幌校_教員／言語社会教育_前期
A62: 60 | B62: 10274 | C62: 北教 | D62: 教育札幌校 | E62: 教員／理数教育 | F62: 11 | G62: 前期 | H62: 北教大_教育札幌校_教員／理数教育_前期
A63: 61 | B63: 10275 | C63: 北教 | D63: 教育札幌校 | E63: 教員／生活創造教育 | F63: 11 | G63: 前期 | H63: 北教大_教育札幌校_教員／生活創造教育_前期
A64: 62 | B64: 10276 | C64: 北教 | D64: 教育札幌校 | E64: 教員／図画工作美術教育 | F64: 11 | G64: 前期 | H64: 北教大_教育札幌校_教員／図画工作美術教育_前期
A65: 63 | B65: 10277 | C65: 北教 | D65: 教育札幌校 | E65: 教員／音楽教育 | F65: 11 | G65: 前期 | H65: 北教大_教育札幌校_教員／音楽教育_前期
A66: 64 | B66: 10278 | C66: 北教 | D66: 教育札幌校 | E66: 教員／保健体育教育 | F66: 11 | G66: 前期 | H66: 北教大_教育札幌校_教員／保健体育教育_前期
A67: 65 | B67: 10279 | C67: 北教 | D67: 教育札幌校 | E67: 教員／養護教育 | F67: 11 | G67: 前期 | H67: 北教大_教育札幌校_教員／養護教育_前期
A68: 66 | B68: 10280 | C68: 北教 | D68: 教育札幌校 | E68: 教員／学校教育 | F68: 13 | G68: 後期 | H68: =C68&"大"&"_"&D68&"_"&E68&"_"&G68 -> 北教大_教育札幌校_教員／学校教育_後期
A69: 67 | B69: 10281 | C69: 北教 | D69: 教育札幌校 | E69: 教員／特別支援教育 | F69: 13 | G69: 後期 | H69: 北教大_教育札幌校_教員／特別支援教育_後期
A70: 68 | B70: 10282 | C70: 北教 | D70: 教育札幌校 | E70: 教員／言語社会教育 | F70: 13 | G70: 後期 | H70: 北教大_教育札幌校_教員／言語社会教育_後期
A71: 69 | B71: 10283 | C71: 北教 | D71: 教育札幌校 | E71: 教員／理数教育 | F71: 13 | G71: 後期 | H71: 北教大_教育札幌校_教員／理数教育_後期
A72: 70 | B72: 10284 | C72: 北教 | D72: 教育札幌校 | E72: 教員／生活創造教育 | F72: 13 | G72: 後期 | H72: 北教大_教育札幌校_教員／生活創造教育_後期
A73: 71 | B73: 10285 | C73: 北教 | D73: 教育札幌校 | E73: 教員／養護教育 | F73: 13 | G73: 後期 | H73: 北教大_教育札幌校_教員／養護教育_後期
A74: 72 | B74: 10286 | C74: 北教 | D74: 教育函館校 | E74: 国際／国際協働 | F74: 11 | G74: 前期 | H74: 北教大_教育函館校_国際／国際協働_前期
A75: 73 | B75: 10287 | C75: 北教 | D75: 教育函館校 | E75: 国際／地域政策 | F75: 11 | G75: 前期 | H75: 北教大_教育函館校_国際／地域政策_前期
A76: 74 | B76: 10288 | C76: 北教 | D76: 教育函館校 | E76: 国際／地域環境科学 | F76: 11 | G76: 前期 | H76: 北教大_教育函館校_国際／地域環境科学_前期
A77: 75 | B77: 10289 | C77: 北教 | D77: 教育函館校 | E77: 国際／地域教育 | F77: 11 | G77: 前期 | H77: 北教大_教育函館校_国際／地域教育_前期
A78: 76 | B78: 10290 | C78: 北教 | D78: 教育函館校 | E78: 国際／国際協働 | F78: 13 | G78: 後期 | H78: 北教大_教育函館校_国際／国際協働_後期
A79: 77 | B79: 10291 | C79: 北教 | D79: 教育函館校 | E79: 国際／地域政策 | F79: 13 | G79: 後期 | H79: 北教大_教育函館校_国際／地域政策_後期
A80: 78 | B80: 10292 | C80: 北教 | D80: 教育函館校 | E80: 国際／地域環境科学 | F80: 13 | G80: 後期 | H80: 北教大_教育函館校_国際／地域環境科学_後期
A81: 79 | B81: 10293 | C81: 北教 | D81: 教育函館校 | E81: 国際／地域教育 | F81: 13 | G81: 後期 | H81: 北教大_教育函館校_国際／地域教育_後期
A82: 80 | B82: 10294 | C82: 北教 | D82: 教育旭川校 | E82: 教員／教育発達 | F82: 11 | G82: 前期 | H82: 北教大_教育旭川校_教員／教育発達_前期
A83: 81 | B83: 10295 | C83: 北教 | D83: 教育旭川校 | E83: 教員／国語 | F83: 11 | G83: 前期 | H83: 北教大_教育旭川校_教員／国語_前期
A84: 82 | B84: 10296 | C84: 北教 | D84: 教育旭川校 | E84: 教員／英語 | F84: 11 | G84: 前期 | H84: 北教大_教育旭川校_教員／英語_前期
A85: 83 | B85: 10297 | C85: 北教 | D85: 教育旭川校 | E85: 教員／社会科 | F85: 11 | G85: 前期 | H85: 北教大_教育旭川校_教員／社会科_前期
A86: 84 | B86: 10298 | C86: 北教 | D86: 教育旭川校 | E86: 教員／数学 | F86: 11 | G86: 前期 | H86: 北教大_教育旭川校_教員／数学_前期
A87: 85 | B87: 10299 | C87: 北教 | D87: 教育旭川校 | E87: 教員／理科 | F87: 11 | G87: 前期 | H87: 北教大_教育旭川校_教員／理科_前期
A88: 86 | B88: 10300 | C88: 北教 | D88: 教育旭川校 | E88: 教員／生活技術 | F88: 11 | G88: 前期 | H88: 北教大_教育旭川校_教員／生活技術_前期
A89: 87 | B89: 10301 | C89: 北教 | D89: 教育旭川校 | E89: 教員／芸術音楽 | F89: 11 | G89: 前期 | H89: 北教大_教育旭川校_教員／芸術音楽_前期
A90: 88 | B90: 10302 | C90: 北教 | D90: 教育旭川校 | E90: 教員／芸術美術 | F90: 11 | G90: 前期 | H90: 北教大_教育旭川校_教員／芸術美術_前期
A91: 89 | B91: 10303 | C91: 北教 | D91: 教育旭川校 | E91: 教員／保健体育 | F91: 11 | G91: 前期 | H91: 北教大_教育旭川校_教員／保健体育_前期
A92: 90 | B92: 10304 | C92: 北教 | D92: 教育旭川校 | E92: 教員／教育発達 | F92: 13 | G92: 後期 | H92: 北教大_教育旭川校_教員／教育発達_後期
A93: 91 | B93: 10305 | C93: 北教 | D93: 教育旭川校 | E93: 教員／国語 | F93: 13 | G93: 後期 | H93: 北教大_教育旭川校_教員／国語_後期
A94: 92 | B94: 10306 | C94: 北教 | D94: 教育旭川校 | E94: 教員／英語 | F94: 13 | G94: 後期 | H94: 北教大_教育旭川校_教員／英語_後期
A95: 93 | B95: 10307 | C95: 北教 | D95: 教育旭川校 | E95: 教員／社会科 | F95: 13 | G95: 後期 | H95: 北教大_教育旭川校_教員／社会科_後期
A96: 94 | B96: 10308 | C96: 北教 | D96: 教育旭川校 | E96: 教員／数学 | F96: 13 | G96: 後期 | H96: 北教大_教育旭川校_教員／数学_後期
A97: 95 | B97: 10309 | C97: 北教 | D97: 教育旭川校 | E97: 教員／理科 | F97: 13 | G97: 後期 | H97: 北教大_教育旭川校_教員／理科_後期
A98: 96 | B98: 10310 | C98: 北教 | D98: 教育旭川校 | E98: 教員／生活技術 | F98: 13 | G98: 後期 | H98: 北教大_教育旭川校_教員／生活技術_後期
A99: 97 | B99: 10336 | C99: 北教 | D99: 教育釧路校 | E99: 教員／地域学校教育実践 | F99: 11 | G99: 前期 | H99: 北教大_教育釧路校_教員／地域学校教育実践_前期
A100: 98 | B100: 10337 | C100: 北教 | D100: 教育釧路校 | E100: 教員／地域学校教育実践 | F100: 13 | G100: 後期 | H100: 北教大_教育釧路校_教員／地域学校教育実践_後期
A101: 99 | B101: 10317 | C101: 北教 | D101: 教育岩見沢校 | E101: 芸術／芸術スポーツビジネス | F101: 11 | G101: 前期 | H101: 北教大_教育岩見沢校_芸術／芸術スポーツビジネス_前期
A102: 100 | B102: 10318 | C102: 北教 | D102: 教育岩見沢校 | E102: 芸術／声楽 | F102: 11 | G102: 前期 | H102: 北教大_教育岩見沢校_芸術／声楽_前期
A103: 101 | B103: 10319 | C103: 北教 | D103: 教育岩見沢校 | E103: 芸術／鍵盤楽器作曲 | F103: 11 | G103: 前期 | H103: 北教大_教育岩見沢校_芸術／鍵盤楽器作曲_前期
A104: 102 | B104: 10320 | C104: 北教 | D104: 教育岩見沢校 | E104: 芸術／管弦打楽器 | F104: 11 | G104: 前期 | H104: 北教大_教育岩見沢校_芸術／管弦打楽器_前期
A105: 103 | B105: 10321 | C105: 北教 | D105: 教育岩見沢校 | E105: 芸術／音楽教育音楽文化 | F105: 11 | G105: 前期 | H105: 北教大_教育岩見沢校_芸術／音楽教育音楽文化_前期
A106: 104 | B106: 10322 | C106: 北教 | D106: 教育岩見沢校 | E106: 芸術／美術デザイン | F106: 11 | G106: 前期 | H106: 北教大_教育岩見沢校_芸術／美術デザイン_前期
A107: 105 | B107: 10323 | C107: 北教 | D107: 教育岩見沢校 | E107: 芸術／書画工芸 | F107: 11 | G107: 前期 | H107: 北教大_教育岩見沢校_芸術／書画工芸_前期
A108: 106 | B108: 10324 | C108: 北教 | D108: 教育岩見沢校 | E108: 芸術／メディアタイムアート | F108: 11 | G108: 前期 | H108: 北教大_教育岩見沢校_芸術／メディアタイムアート_前期
A109: 107 | B109: 10325 | C109: 北教 | D109: 教育岩見沢校 | E109: 芸術／美術文化教育 | F109: 11 | G109: 前期 | H109: 北教大_教育岩見沢校_芸術／美術文化教育_前期
A110: 108 | B110: 10326 | C110: 北教 | D110: 教育岩見沢校 | E110: 芸術／スポーツコーチング科学 | F110: 11 | G110: 前期 | H110: 北教大_教育岩見沢校_芸術／スポーツコーチング科学_前期
A111: 109 | B111: 10327 | C111: 北教 | D111: 教育岩見沢校 | E111: 芸術／アウトドアライフ | F111: 11 | G111: 前期 | H111: 北教大_教育岩見沢校_芸術／アウトドアライフ_前期
A112: 110 | B112: 10328 | C112: 北教 | D112: 教育岩見沢校 | E112: 芸術／芸術スポーツビジネス | F112: 13 | G112: 後期 | H112: 北教大_教育岩見沢校_芸術／芸術スポーツビジネス_後期
A113: 111 | B113: 10329 | C113: 北教 | D113: 教育岩見沢校 | E113: 芸術／音楽文化 | F113: 13 | G113: 後期 | H113: 北教大_教育岩見沢校_芸術／音楽文化_後期
A114: 112 | B114: 10330 | C114: 北教 | D114: 教育岩見沢校 | E114: 芸術／美術デザイン | F114: 13 | G114: 後期 | H114: 北教大_教育岩見沢校_芸術／美術デザイン_後期
A115: 113 | B115: 10331 | C115: 北教 | D115: 教育岩見沢校 | E115: 芸術／書画工芸 | F115: 13 | G115: 後期 | H115: 北教大_教育岩見沢校_芸術／書画工芸_後期
A116: 114 | B116: 10332 | C116: 北教 | D116: 教育岩見沢校 | E116: 芸術／メディアタイムアート | F116: 13 | G116: 後期 | H116: 北教大_教育岩見沢校_芸術／メディアタイムアート_後期
A117: 115 | B117: 10333 | C117: 北教 | D117: 教育岩見沢校 | E117: 芸術／美術文化教育 | F117: 13 | G117: 後期 | H117: 北教大_教育岩見沢校_芸術／美術文化教育_後期
A118: 116 | B118: 10334 | C118: 北教 | D118: 教育岩見沢校 | E118: 芸術／スポーツコーチング科学 | F118: 13 | G118: 後期 | H118: 北教大_教育岩見沢校_芸術／スポーツコーチング科学_後期
A119: 117 | B119: 10335 | C119: 北教 | D119: 教育岩見沢校 | E119: 芸術／アウトドアライフ | F119: 13 | G119: 後期 | H119: 北教大_教育岩見沢校_芸術／アウトドアライフ_後期
A120: 118 | B120: 10413 | C120: 室蘭工業 | D120: 理工 | E120: 生産工 | F120: 11 | G120: 前期 | H120: 室蘭工業大_理工_生産工_前期
A121: 119 | B121: 10414 | C121: 室蘭工業 | D121: 理工 | E121: 生産科学 | F121: 11 | G121: 前期 | H121: 室蘭工業大_理工_生産科学_前期
A122: 120 | B122: 10416 | C122: 室蘭工業 | D122: 理工 | E122: 生産工 | F122: 13 | G122: 後期 | H122: 室蘭工業大_理工_生産工_後期
A123: 121 | B123: 10417 | C123: 室蘭工業 | D123: 理工 | E123: 生産科学 | F123: 13 | G123: 後期 | H123: 室蘭工業大_理工_生産科学_後期
A124: 122 | B124: 10415 | C124: 室蘭工業 | D124: 理工夜 | E124: 生産工 | F124: 11 | G124: 前期 | H124: 室蘭工業大_理工夜_生産工_前期
A125: 123 | B125: 10418 | C125: 室蘭工業 | D125: 理工夜 | E125: 生産工 | F125: 13 | G125: 後期 | H125: 室蘭工業大_理工夜_生産工_後期
A126: 124 | B126: 10471 | C126: 弘前 | D126: 人文社会科学 | E126: 文化創生 | F126: 11 | G126: 前期 | H126: 弘前大_人文社会科学_文化創生_前期
A127: 125 | B127: 10472 | C127: 弘前 | D127: 人文社会科学 | E127: 社会経営国語選択 | F127: 11 | G127: 前期 | H127: 弘前大_人文社会科学_社会経営国語選択_前期
A128: 126 | B128: 10473 | C128: 弘前 | D128: 人文社会科学 | E128: 社会経営数学選択 | F128: 11 | G128: 前期 | H128: 弘前大_人文社会科学_社会経営数学選択_前期
A129: 127 | B129: 10474 | C129: 弘前 | D129: 人文社会科学 | E129: 文化創生 | F129: 13 | G129: 後期 | H129: 弘前大_人文社会科学_文化創生_後期
A130: 128 | B130: 10475 | C130: 弘前 | D130: 人文社会科学 | E130: 社会経営 | F130: 13 | G130: 後期 | H130: 弘前大_人文社会科学_社会経営_後期
A131: 129 | B131: 10476 | C131: 弘前 | D131: 教育 | E131: 学校／小学校 | F131: 11 | G131: 前期 | H131: 弘前大_教育_学校／小学校_前期
A132: 130 | B132: 10477 | C132: 弘前 | D132: 教育 | E132: 学校／中学国語 | F132: 11 | G132: 前期 | H132: =C132&"大"&"_"&D132&"_"&E132&"_"&G132 -> 弘前大_教育_学校／中学国語_前期
A133: 131 | B133: 10478 | C133: 弘前 | D133: 教育 | E133: 学校／中学社会 | F133: 11 | G133: 前期 | H133: 弘前大_教育_学校／中学社会_前期
A134: 132 | B134: 10479 | C134: 弘前 | D134: 教育 | E134: 学校／中学数学 | F134: 11 | G134: 前期 | H134: 弘前大_教育_学校／中学数学_前期
A135: 133 | B135: 10480 | C135: 弘前 | D135: 教育 | E135: 学校／中学理科 | F135: 11 | G135: 前期 | H135: 弘前大_教育_学校／中学理科_前期
A136: 134 | B136: 10481 | C136: 弘前 | D136: 教育 | E136: 学校／中学音楽 | F136: 11 | G136: 前期 | H136: 弘前大_教育_学校／中学音楽_前期
A137: 135 | B137: 10482 | C137: 弘前 | D137: 教育 | E137: 学校／中学美術 | F137: 11 | G137: 前期 | H137: 弘前大_教育_学校／中学美術_前期
A138: 136 | B138: 10483 | C138: 弘前 | D138: 教育 | E138: 学校／中学保健体育 | F138: 11 | G138: 前期 | H138: 弘前大_教育_学校／中学保健体育_前期
A139: 137 | B139: 10484 | C139: 弘前 | D139: 教育 | E139: 学校／中学技術 | F139: 11 | G139: 前期 | H139: 弘前大_教育_学校／中学技術_前期
A140: 138 | B140: 10485 | C140: 弘前 | D140: 教育 | E140: 学校／中学家庭科 | F140: 11 | G140: 前期 | H140: 弘前大_教育_学校／中学家庭科_前期
A141: 139 | B141: 10486 | C141: 弘前 | D141: 教育 | E141: 学校／中学英語 | F141: 11 | G141: 前期 | H141: 弘前大_教育_学校／中学英語_前期
A142: 140 | B142: 10487 | C142: 弘前 | D142: 教育 | E142: 学校／特別支援教育 | F142: 11 | G142: 前期 | H142: 弘前大_教育_学校／特別支援教育_前期
A143: 141 | B143: 10488 | C143: 弘前 | D143: 教育 | E143: 養護教諭養成 | F143: 11 | G143: 前期 | H143: 弘前大_教育_養護教諭養成_前期
A144: 142 | B144: 10489 | C144: 弘前 | D144: 教育 | E144: 学校／小学校 | F144: 13 | G144: 後期 | H144: 弘前大_教育_学校／小学校_後期
A145: 143 | B145: 10490 | C145: 弘前 | D145: 理工 | E145: 数物科学数学選択 | F145: 11 | G145: 前期 | H145: 弘前大_理工_数物科学数学選択_前期
A146: 144 | B146: 10491 | C146: 弘前 | D146: 理工 | E146: 数物科学数学理科選択 | F146: 11 | G146: 前期 | H146: 弘前大_理工_数物科学数学理科選択_前期
A147: 145 | B147: 10492 | C147: 弘前 | D147: 理工 | E147: 物質創成化学 | F147: 11 | G147: 前期 | H147: 弘前大_理工_物質創成化学_前期
A148: 146 | B148: 10493 | C148: 弘前 | D148: 理工 | E148: 地球環境防災 | F148: 11 | G148: 前期 | H148: 弘前大_理工_地球環境防災_前期
A149: 147 | B149: 10494 | C149: 弘前 | D149: 理工 | E149: 電子情報工 | F149: 11 | G149: 前期 | H149: 弘前大_理工_電子情報工_前期
A150: 148 | B150: 10495 | C150: 弘前 | D150: 理工 | E150: 機械科学 | F150: 11 | G150: 前期 | H150: 弘前大_理工_機械科学_前期
A151: 149 | B151: 10496 | C151: 弘前 | D151: 理工 | E151: 自然エネルギー | F151: 11 | G151: 前期 | H151: 弘前大_理工_自然エネルギー_前期
A152: 150 | B152: 10497 | C152: 弘前 | D152: 理工 | E152: 数物科学数学選択 | F152: 13 | G152: 後期 | H152: 弘前大_理工_数物科学数学選択_後期
A153: 151 | B153: 10498 | C153: 弘前 | D153: 理工 | E153: 数物科学理科選択 | F153: 13 | G153: 後期 | H153: 弘前大_理工_数物科学理科選択_後期
A154: 152 | B154: 10499 | C154: 弘前 | D154: 理工 | E154: 物質創成化学 | F154: 13 | G154: 後期 | H154: 弘前大_理工_物質創成化学_後期
A155: 153 | B155: 10500 | C155: 弘前 | D155: 理工 | E155: 地球環境防災 | F155: 13 | G155: 後期 | H155: 弘前大_理工_地球環境防災_後期
A156: 154 | B156: 10501 | C156: 弘前 | D156: 理工 | E156: 電子情報工 | F156: 13 | G156: 後期 | H156: 弘前大_理工_電子情報工_後期
A157: 155 | B157: 10502 | C157: 弘前 | D157: 理工 | E157: 機械科学 | F157: 13 | G157: 後期 | H157: 弘前大_理工_機械科学_後期
A158: 156 | B158: 10503 | C158: 弘前 | D158: 理工 | E158: 自然エネルギー | F158: 13 | G158: 後期 | H158: 弘前大_理工_自然エネルギー_後期
A159: 157 | B159: 10504 | C159: 弘前 | D159: 農学生命科学 | E159: 生物 | F159: 11 | G159: 前期 | H159: 弘前大_農学生命科学_生物_前期
A160: 158 | B160: 10505 | C160: 弘前 | D160: 農学生命科学 | E160: 分子生命科学 | F160: 11 | G160: 前期 | H160: 弘前大_農学生命科学_分子生命科学_前期
A161: 159 | B161: 10506 | C161: 弘前 | D161: 農学生命科学 | E161: 食料資源 | F161: 11 | G161: 前期 | H161: 弘前大_農学生命科学_食料資源_前期
A162: 160 | B162: 10507 | C162: 弘前 | D162: 農学生命科学 | E162: 国際園芸農 | F162: 11 | G162: 前期 | H162: 弘前大_農学生命科学_国際園芸農_前期
A163: 161 | B163: 10508 | C163: 弘前 | D163: 農学生命科学 | E163: 地域環境工 | F163: 11 | G163: 前期 | H163: 弘前大_農学生命科学_地域環境工_前期
A164: 162 | B164: 10509 | C164: 弘前 | D164: 農学生命科学 | E164: 生物 | F164: 13 | G164: 後期 | H164: 弘前大_農学生命科学_生物_後期
A165: 163 | B165: 10510 | C165: 弘前 | D165: 農学生命科学 | E165: 分子生命科学 | F165: 13 | G165: 後期 | H165: 弘前大_農学生命科学_分子生命科学_後期
A166: 164 | B166: 10511 | C166: 弘前 | D166: 農学生命科学 | E166: 食料資源 | F166: 13 | G166: 後期 | H166: 弘前大_農学生命科学_食料資源_後期
A167: 165 | B167: 10512 | C167: 弘前 | D167: 農学生命科学 | E167: 国際園芸農 | F167: 13 | G167: 後期 | H167: 弘前大_農学生命科学_国際園芸農_後期
A168: 166 | B168: 10513 | C168: 弘前 | D168: 農学生命科学 | E168: 地域環境工 | F168: 13 | G168: 後期 | H168: 弘前大_農学生命科学_地域環境工_後期
A169: 167 | B169: 10514 | C169: 弘前 | D169: 医 | E169: 医一般枠 | F169: 11 | G169: 前期 | H169: 弘前大_医_医一般枠_前期
A170: 168 | B170: 10515 | C170: 弘前 | D170: 医 | E170: 医青森県定着枠 | F170: 11 | G170: 前期 | H170: 弘前大_医_医青森県定着枠_前期
A171: 169 | B171: 10516 | C171: 弘前 | D171: 医 | E171: 保健／看護学 | F171: 11 | G171: 前期 | H171: 弘前大_医_保健／看護学_前期
A172: 170 | B172: 10517 | C172: 弘前 | D172: 医 | E172: 保健／放射線技術科学 | F172: 11 | G172: 前期 | H172: 弘前大_医_保健／放射線技術科学_前期
A173: 171 | B173: 10518 | C173: 弘前 | D173: 医 | E173: 保健／検査技術科学 | F173: 11 | G173: 前期 | H173: 弘前大_医_保健／検査技術科学_前期
A174: 172 | B174: 10519 | C174: 弘前 | D174: 医 | E174: 保健／理学療法学 | F174: 11 | G174: 前期 | H174: 弘前大_医_保健／理学療法学_前期
A175: 173 | B175: 10520 | C175: 弘前 | D175: 医 | E175: 保健／作業療法学 | F175: 11 | G175: 前期 | H175: 弘前大_医_保健／作業療法学_前期
A176: 174 | B176: 10571 | C176: 岩手 | D176: 人文社会科学 | E176: 人間文化 | F176: 11 | G176: 前期 | H176: 岩手大_人文社会科学_人間文化_前期
A177: 175 | B177: 10572 | C177: 岩手 | D177: 人文社会科学 | E177: 地域政策 | F177: 11 | G177: 前期 | H177: 岩手大_人文社会科学_地域政策_前期
A178: 176 | B178: 10573 | C178: 岩手 | D178: 人文社会科学 | E178: 人間文化 | F178: 13 | G178: 後期 | H178: 岩手大_人文社会科学_人間文化_後期
A179: 177 | B179: 10574 | C179: 岩手 | D179: 人文社会科学 | E179: 地域政策 | F179: 13 | G179: 後期 | H179: 岩手大_人文社会科学_地域政策_後期
A180: 178 | B180: 10575 | C180: 岩手 | D180: 教育 | E180: 学校／小学校教育 | F180: 11 | G180: 前期 | H180: 岩手大_教育_学校／小学校教育_前期
A181: 179 | B181: 10576 | C181: 岩手 | D181: 教育 | E181: 学校／中学国語 | F181: 11 | G181: 前期 | H181: 岩手大_教育_学校／中学国語_前期
A182: 180 | B182: 10577 | C182: 岩手 | D182: 教育 | E182: 学校／中学社会 | F182: 11 | G182: 前期 | H182: 岩手大_教育_学校／中学社会_前期
A183: 181 | B183: 10578 | C183: 岩手 | D183: 教育 | E183: 学校／中学技術 | F183: 11 | G183: 前期 | H183: 岩手大_教育_学校／中学技術_前期
A184: 182 | B184: 10579 | C184: 岩手 | D184: 教育 | E184: 学校／中学家庭 | F184: 11 | G184: 前期 | H184: 岩手大_教育_学校／中学家庭_前期
A185: 183 | B185: 10580 | C185: 岩手 | D185: 教育 | E185: 学校／中学英語 | F185: 11 | G185: 前期 | H185: 岩手大_教育_学校／中学英語_前期
A186: 184 | B186: 10581 | C186: 岩手 | D186: 教育 | E186: 学校／中学音楽 | F186: 11 | G186: 前期 | H186: 岩手大_教育_学校／中学音楽_前期
A187: 185 | B187: 10582 | C187: 岩手 | D187: 教育 | E187: 学校／中学美術 | F187: 11 | G187: 前期 | H187: 岩手大_教育_学校／中学美術_前期
A188: 186 | B188: 10583 | C188: 岩手 | D188: 教育 | E188: 学校／中学保健体育 | F188: 11 | G188: 前期 | H188: 岩手大_教育_学校／中学保健体育_前期
A189: 187 | B189: 10584 | C189: 岩手 | D189: 教育 | E189: 学校／数学 | F189: 11 | G189: 前期 | H189: 岩手大_教育_学校／数学_前期
A190: 188 | B190: 10585 | C190: 岩手 | D190: 教育 | E190: 学校／理科 | F190: 11 | G190: 前期 | H190: 岩手大_教育_学校／理科_前期
A191: 189 | B191: 10586 | C191: 岩手 | D191: 教育 | E191: 学校／特別支援教育 | F191: 11 | G191: 前期 | H191: 岩手大_教育_学校／特別支援教育_前期
A192: 190 | B192: 10587 | C192: 岩手 | D192: 教育 | E192: 学校／小学校教育 | F192: 13 | G192: 後期 | H192: 岩手大_教育_学校／小学校教育_後期
A193: 191 | B193: 10588 | C193: 岩手 | D193: 教育 | E193: 学校／特別支援教育 | F193: 13 | G193: 後期 | H193: 岩手大_教育_学校／特別支援教育_後期
A194: 192 | B194: 10589 | C194: 岩手 | D194: 理工 | E194: 化学／化学 | F194: 11 | G194: 前期 | H194: 岩手大_理工_化学／化学_前期
A195: 193 | B195: 10590 | C195: 岩手 | D195: 理工 | E195: 化学／生命 | F195: 11 | G195: 前期 | H195: 岩手大_理工_化学／生命_前期
A196: 194 | B196: 10591 | C196: 岩手 | D196: 理工 | E196: 物理／数理物理 | F196: 11 | G196: 前期 | H196: =C196&"大"&"_"&D196&"_"&E196&"_"&G196 -> 岩手大_理工_物理／数理物理_前期
A197: 195 | B197: 10592 | C197: 岩手 | D197: 理工 | E197: 物理／マテリアル | F197: 11 | G197: 前期 | H197: 岩手大_理工_物理／マテリアル_前期
A198: 196 | B198: 10593 | C198: 岩手 | D198: 理工 | E198: シス／電気電子通信 | F198: 11 | G198: 前期 | H198: 岩手大_理工_シス／電気電子通信_前期
A199: 197 | B199: 10594 | C199: 岩手 | D199: 理工 | E199: シス／知能メディア情報 | F199: 11 | G199: 前期 | H199: 岩手大_理工_シス／知能メディア情報_前期
A200: 198 | B200: 10595 | C200: 岩手 | D200: 理工 | E200: シス／機械科学 | F200: 11 | G200: 前期 | H200: 岩手大_理工_シス／機械科学_前期
... 3338 more rows

Sheet kawaitsv
A1: INDEX | B1: UNIV_COURSE | C1: UNIV_CODE
A2: 1 | B2: 旭川医科大_医_医_前期 | C2: 10001
A3: 2 | B3: 旭川医科大_医_看護_前期 | C3: 10002
A4: 3 | B4: 旭川医科大_医_医_後期 | C4: 10003
A5: 4 | B5: 旭川医科大_医_看護_後期 | C5: 10004
A6: 5 | B6: 小樽商科大_商_<E>_前期 | C6: 10021
A7: 6 | B7: 小樽商科大_商_<E>_後期 | C7: 10022
A8: 7 | B8: 小樽商科大_商夜_<E>_前期 | C8: 10023
A9: 8 | B9: 帯広畜産大_畜産_共同獣医学_前期 | C9: 10041
A10: 9 | B10: 帯広畜産大_畜産_畜産科学_前期 | C10: 10042
A11: 10 | B11: 帯広畜産大_畜産_共同獣医学_後期 | C11: 10043
A12: 11 | B12: 帯広畜産大_畜産_畜産科学_後期 | C12: 10044
A13: 12 | B13: 北見工業大_工_地球環境工_前期 | C13: 10061
A14: 13 | B14: 北見工業大_工_地域未来デザイン工_前期 | C14: 10062
A15: 14 | B15: 北見工業大_工_地球環境工_後期 | C15: 10063
A16: 15 | B16: 北見工業大_工_地域未来デザイン工_後期 | C16: 10064
A17: 16 | B17: 北海道大_総合入試文系_<E>_前期 | C17: 10181
A18: 17 | B18: 北海道大_文_人文科学_前期 | C18: 10182
A19: 18 | B19: 北海道大_文_人文科学_後期 | C19: 10183
A20: 19 | B20: 北海道大_教育_教育_前期 | C20: 10184
A21: 20 | B21: 北海道大_教育_教育_後期 | C21: 10185
A22: 21 | B22: 北海道大_法_法学_前期 | C22: 10186
A23: 22 | B23: 北海道大_法_法学_後期 | C23: 10187
A24: 23 | B24: 北海道大_経済_<E>_前期 | C24: 10188
A25: 24 | B25: 北海道大_経済_<E>_後期 | C25: 10189
A26: 25 | B26: 北海道大_総合入試理系_数学重点_前期 | C26: 10190
A27: 26 | B27: 北海道大_総合入試理系_物理重点_前期 | C27: 10191
A28: 27 | B28: 北海道大_総合入試理系_化学重点_前期 | C28: 10192
A29: 28 | B29: 北海道大_総合入試理系_生物重点_前期 | C29: 10193
A30: 29 | B30: 北海道大_総合入試理系_総合科学_前期 | C30: 10194
A31: 30 | B31: 北海道大_理_数学_後期 | C31: 10195
A32: 31 | B32: 北海道大_理_物理_後期 | C32: 10196
A33: 32 | B33: 北海道大_理_化学_後期 | C33: 10197
A34: 33 | B34: 北海道大_理_生物／生物学_後期 | C34: 10198
A35: 34 | B35: 北海道大_理_生物／高分子機能学_後期 | C35: 10199
A36: 35 | B36: 北海道大_理_地球惑星科学_後期 | C36: 10200
A37: 36 | B37: 北海道大_工_応用理工系_後期 | C37: 10201
A38: 37 | B38: 北海道大_工_情報エレクトロニクス_後期 | C38: 10202
A39: 38 | B39: 北海道大_工_機械知能工_後期 | C39: 10203
A40: 39 | B40: 北海道大_工_環境社会工_後期 | C40: 10204
A41: 40 | B41: 北海道大_農_<E>_後期 | C41: 10205
A42: 41 | B42: 北海道大_獣医_共同獣医学_前期 | C42: 10206
A43: 42 | B43: 北海道大_獣医_共同獣医学_後期 | C43: 10207
A44: 43 | B44: 北海道大_水産_<E>_前期 | C44: 10208
A45: 44 | B45: 北海道大_水産_<E>_後期 | C45: 10209
A46: 45 | B46: 北海道大_医_医_前期 | C46: 10210
A47: 46 | B47: 北海道大_医_保健／看護学_前期 | C47: 10211
A48: 47 | B48: 北海道大_医_保健／放射線技術科学_前期 | C48: 10212
A49: 48 | B49: 北海道大_医_保健／検査技術科学_前期 | C49: 10213
A50: 49 | B50: 北海道大_医_保健／理学療法学_前期 | C50: 10214
A51: 50 | B51: 北海道大_医_保健／作業療法学_前期 | C51: 10215
A52: 51 | B52: 北海道大_医_保健／放射線技術科学_後期 | C52: 10216
A53: 52 | B53: 北海道大_医_保健／検査技術科学_後期 | C53: 10217
A54: 53 | B54: 北海道大_医_保健／理学療法学_後期 | C54: 10218
A55: 54 | B55: 北海道大_歯_歯_前期 | C55: 10219
A56: 55 | B56: 北海道大_歯_歯_後期 | C56: 10220
A57: 56 | B57: 北海道大_薬_<E>_後期 | C57: 10221
A58: 57 | B58: 北教大_教育札幌校_教員／学校教育_前期 | C58: 10271
A59: 58 | B59: 北教大_教育札幌校_教員／特別支援教育_前期 | C59: 10272
A60: 59 | B60: 北教大_教育札幌校_教員／言語社会教育_前期 | C60: 10273
A61: 60 | B61: 北教大_教育札幌校_教員／理数教育_前期 | C61: 10274
A62: 61 | B62: 北教大_教育札幌校_教員／生活創造教育_前期 | C62: 10275
A63: 62 | B63: 北教大_教育札幌校_教員／図画工作美術教育_前期 | C63: 10276
A64: 63 | B64: 北教大_教育札幌校_教員／音楽教育_前期 | C64: 10277
A65: 64 | B65: 北教大_教育札幌校_教員／保健体育教育_前期 | C65: 10278
A66: 65 | B66: 北教大_教育札幌校_教員／養護教育_前期 | C66: 10279
A67: 66 | B67: 北教大_教育札幌校_教員／学校教育_後期 | C67: 10280
A68: 67 | B68: 北教大_教育札幌校_教員／特別支援教育_後期 | C68: 10281
A69: 68 | B69: 北教大_教育札幌校_教員／言語社会教育_後期 | C69: 10282
A70: 69 | B70: 北教大_教育札幌校_教員／理数教育_後期 | C70: 10283
A71: 70 | B71: 北教大_教育札幌校_教員／生活創造教育_後期 | C71: 10284
A72: 71 | B72: 北教大_教育札幌校_教員／養護教育_後期 | C72: 10285
A73: 72 | B73: 北教大_教育函館校_国際／国際協働_前期 | C73: 10286
A74: 73 | B74: 北教大_教育函館校_国際／地域政策_前期 | C74: 10287
A75: 74 | B75: 北教大_教育函館校_国際／地域環境科学_前期 | C75: 10288
A76: 75 | B76: 北教大_教育函館校_国際／地域教育_前期 | C76: 10289
A77: 76 | B77: 北教大_教育函館校_国際／国際協働_後期 | C77: 10290
A78: 77 | B78: 北教大_教育函館校_国際／地域政策_後期 | C78: 10291
A79: 78 | B79: 北教大_教育函館校_国際／地域環境科学_後期 | C79: 10292
A80: 79 | B80: 北教大_教育函館校_国際／地域教育_後期 | C80: 10293
A81: 80 | B81: 北教大_教育旭川校_教員／教育発達_前期 | C81: 10294
A82: 81 | B82: 北教大_教育旭川校_教員／国語_前期 | C82: 10295
A83: 82 | B83: 北教大_教育旭川校_教員／英語_前期 | C83: 10296
A84: 83 | B84: 北教大_教育旭川校_教員／社会科_前期 | C84: 10297
A85: 84 | B85: 北教大_教育旭川校_教員／数学_前期 | C85: 10298
A86: 85 | B86: 北教大_教育旭川校_教員／理科_前期 | C86: 10299
A87: 86 | B87: 北教大_教育旭川校_教員／生活技術_前期 | C87: 10300
A88: 87 | B88: 北教大_教育旭川校_教員／芸術音楽_前期 | C88: 10301
A89: 88 | B89: 北教大_教育旭川校_教員／芸術美術_前期 | C89: 10302
A90: 89 | B90: 北教大_教育旭川校_教員／保健体育_前期 | C90: 10303
A91: 90 | B91: 北教大_教育旭川校_教員／教育発達_後期 | C91: 10304
A92: 91 | B92: 北教大_教育旭川校_教員／国語_後期 | C92: 10305
A93: 92 | B93: 北教大_教育旭川校_教員／英語_後期 | C93: 10306
A94: 93 | B94: 北教大_教育旭川校_教員／社会科_後期 | C94: 10307
A95: 94 | B95: 北教大_教育旭川校_教員／数学_後期 | C95: 10308
A96: 95 | B96: 北教大_教育旭川校_教員／理科_後期 | C96: 10309
A97: 96 | B97: 北教大_教育旭川校_教員／生活技術_後期 | C97: 10310
A98: 97 | B98: 北教大_教育釧路校_教員／地域学校教育実践_前期 | C98: 10336
A99: 98 | B99: 北教大_教育釧路校_教員／地域学校教育実践_後期 | C99: 10337
A100: 99 | B100: 北教大_教育岩見沢校_芸術／芸術スポーツビジネス_前期 | C100: 10317
A101: 100 | B101: 北教大_教育岩見沢校_芸術／声楽_前期 | C101: 10318
A102: 101 | B102: 北教大_教育岩見沢校_芸術／鍵盤楽器作曲_前期 | C102: 10319
A103: 102 | B103: 北教大_教育岩見沢校_芸術／管弦打楽器_前期 | C103: 10320
A104: 103 | B104: 北教大_教育岩見沢校_芸術／音楽教育音楽文化_前期 | C104: 10321
A105: 104 | B105: 北教大_教育岩見沢校_芸術／美術デザイン_前期 | C105: 10322
A106: 105 | B106: 北教大_教育岩見沢校_芸術／書画工芸_前期 | C106: 10323
A107: 106 | B107: 北教大_教育岩見沢校_芸術／メディアタイムアート_前期 | C107: 10324
A108: 107 | B108: 北教大_教育岩見沢校_芸術／美術文化教育_前期 | C108: 10325
A109: 108 | B109: 北教大_教育岩見沢校_芸術／スポーツコーチング科学_前期 | C109: 10326
A110: 109 | B110: 北教大_教育岩見沢校_芸術／アウトドアライフ_前期 | C110: 10327
A111: 110 | B111: 北教大_教育岩見沢校_芸術／芸術スポーツビジネス_後期 | C111: 10328
A112: 111 | B112: 北教大_教育岩見沢校_芸術／音楽文化_後期 | C112: 10329
A113: 112 | B113: 北教大_教育岩見沢校_芸術／美術デザイン_後期 | C113: 10330
A114: 113 | B114: 北教大_教育岩見沢校_芸術／書画工芸_後期 | C114: 10331
A115: 114 | B115: 北教大_教育岩見沢校_芸術／メディアタイムアート_後期 | C115: 10332
A116: 115 | B116: 北教大_教育岩見沢校_芸術／美術文化教育_後期 | C116: 10333
A117: 116 | B117: 北教大_教育岩見沢校_芸術／スポーツコーチング科学_後期 | C117: 10334
A118: 117 | B118: 北教大_教育岩見沢校_芸術／アウトドアライフ_後期 | C118: 10335
A119: 118 | B119: 室蘭工業大_理工_生産工_前期 | C119: 10413
A120: 119 | B120: 室蘭工業大_理工_生産科学_前期 | C120: 10414
A121: 120 | B121: 室蘭工業大_理工_生産工_後期 | C121: 10416
A122: 121 | B122: 室蘭工業大_理工_生産科学_後期 | C122: 10417
A123: 122 | B123: 室蘭工業大_理工夜_生産工_前期 | C123: 10415
A124: 123 | B124: 室蘭工業大_理工夜_生産工_後期 | C124: 10418
A125: 124 | B125: 弘前大_人文社会科学_文化創生_前期 | C125: 10471
A126: 125 | B126: 弘前大_人文社会科学_社会経営国語選択_前期 | C126: 10472
A127: 126 | B127: 弘前大_人文社会科学_社会経営数学選択_前期 | C127: 10473
A128: 127 | B128: 弘前大_人文社会科学_文化創生_後期 | C128: 10474
A129: 128 | B129: 弘前大_人文社会科学_社会経営_後期 | C129: 10475
A130: 129 | B130: 弘前大_教育_学校／小学校_前期 | C130: 10476
A131: 130 | B131: 弘前大_教育_学校／中学国語_前期 | C131: 10477
A132: 131 | B132: 弘前大_教育_学校／中学社会_前期 | C132: 10478
A133: 132 | B133: 弘前大_教育_学校／中学数学_前期 | C133: 10479
A134: 133 | B134: 弘前大_教育_学校／中学理科_前期 | C134: 10480
A135: 134 | B135: 弘前大_教育_学校／中学音楽_前期 | C135: 10481
A136: 135 | B136: 弘前大_教育_学校／中学美術_前期 | C136: 10482
A137: 136 | B137: 弘前大_教育_学校／中学保健体育_前期 | C137: 10483
A138: 137 | B138: 弘前大_教育_学校／中学技術_前期 | C138: 10484
A139: 138 | B139: 弘前大_教育_学校／中学家庭科_前期 | C139: 10485
A140: 139 | B140: 弘前大_教育_学校／中学英語_前期 | C140: 10486
A141: 140 | B141: 弘前大_教育_学校／特別支援教育_前期 | C141: 10487
A142: 141 | B142: 弘前大_教育_養護教諭養成_前期 | C142: 10488
A143: 142 | B143: 弘前大_教育_学校／小学校_後期 | C143: 10489
A144: 143 | B144: 弘前大_理工_数物科学数学選択_前期 | C144: 10490
A145: 144 | B145: 弘前大_理工_数物科学数学理科選択_前期 | C145: 10491
A146: 145 | B146: 弘前大_理工_物質創成化学_前期 | C146: 10492
A147: 146 | B147: 弘前大_理工_地球環境防災_前期 | C147: 10493
A148: 147 | B148: 弘前大_理工_電子情報工_前期 | C148: 10494
A149: 148 | B149: 弘前大_理工_機械科学_前期 | C149: 10495
A150: 149 | B150: 弘前大_理工_自然エネルギー_前期 | C150: 10496
A151: 150 | B151: 弘前大_理工_数物科学数学選択_後期 | C151: 10497
A152: 151 | B152: 弘前大_理工_数物科学理科選択_後期 | C152: 10498
A153: 152 | B153: 弘前大_理工_物質創成化学_後期 | C153: 10499
A154: 153 | B154: 弘前大_理工_地球環境防災_後期 | C154: 10500
A155: 154 | B155: 弘前大_理工_電子情報工_後期 | C155: 10501
A156: 155 | B156: 弘前大_理工_機械科学_後期 | C156: 10502
A157: 156 | B157: 弘前大_理工_自然エネルギー_後期 | C157: 10503
A158: 157 | B158: 弘前大_農学生命科学_生物_前期 | C158: 10504
A159: 158 | B159: 弘前大_農学生命科学_分子生命科学_前期 | C159: 10505
A160: 159 | B160: 弘前大_農学生命科学_食料資源_前期 | C160: 10506
A161: 160 | B161: 弘前大_農学生命科学_国際園芸農_前期 | C161: 10507
A162: 161 | B162: 弘前大_農学生命科学_地域環境工_前期 | C162: 10508
A163: 162 | B163: 弘前大_農学生命科学_生物_後期 | C163: 10509
A164: 163 | B164: 弘前大_農学生命科学_分子生命科学_後期 | C164: 10510
A165: 164 | B165: 弘前大_農学生命科学_食料資源_後期 | C165: 10511
A166: 165 | B166: 弘前大_農学生命科学_国際園芸農_後期 | C166: 10512
A167: 166 | B167: 弘前大_農学生命科学_地域環境工_後期 | C167: 10513
A168: 167 | B168: 弘前大_医_医一般枠_前期 | C168: 10514
A169: 168 | B169: 弘前大_医_医青森県定着枠_前期 | C169: 10515
A170: 169 | B170: 弘前大_医_保健／看護学_前期 | C170: 10516
A171: 170 | B171: 弘前大_医_保健／放射線技術科学_前期 | C171: 10517
A172: 171 | B172: 弘前大_医_保健／検査技術科学_前期 | C172: 10518
A173: 172 | B173: 弘前大_医_保健／理学療法学_前期 | C173: 10519
A174: 173 | B174: 弘前大_医_保健／作業療法学_前期 | C174: 10520
A175: 174 | B175: 岩手大_人文社会科学_人間文化_前期 | C175: 10571
A176: 175 | B176: 岩手大_人文社会科学_地域政策_前期 | C176: 10572
A177: 176 | B177: 岩手大_人文社会科学_人間文化_後期 | C177: 10573
A178: 177 | B178: 岩手大_人文社会科学_地域政策_後期 | C178: 10574
A179: 178 | B179: 岩手大_教育_学校／小学校教育_前期 | C179: 10575
A180: 179 | B180: 岩手大_教育_学校／中学国語_前期 | C180: 10576
A181: 180 | B181: 岩手大_教育_学校／中学社会_前期 | C181: 10577
A182: 181 | B182: 岩手大_教育_学校／中学技術_前期 | C182: 10578
A183: 182 | B183: 岩手大_教育_学校／中学家庭_前期 | C183: 10579
A184: 183 | B184: 岩手大_教育_学校／中学英語_前期 | C184: 10580
A185: 184 | B185: 岩手大_教育_学校／中学音楽_前期 | C185: 10581
A186: 185 | B186: 岩手大_教育_学校／中学美術_前期 | C186: 10582
A187: 186 | B187: 岩手大_教育_学校／中学保健体育_前期 | C187: 10583
A188: 187 | B188: 岩手大_教育_学校／数学_前期 | C188: 10584
A189: 188 | B189: 岩手大_教育_学校／理科_前期 | C189: 10585
A190: 189 | B190: 岩手大_教育_学校／特別支援教育_前期 | C190: 10586
A191: 190 | B191: 岩手大_教育_学校／小学校教育_後期 | C191: 10587
A192: 191 | B192: 岩手大_教育_学校／特別支援教育_後期 | C192: 10588
A193: 192 | B193: 岩手大_理工_化学／化学_前期 | C193: 10589
A194: 193 | B194: 岩手大_理工_化学／生命_前期 | C194: 10590
A195: 194 | B195: 岩手大_理工_物理／数理物理_前期 | C195: 10591
A196: 195 | B196: 岩手大_理工_物理／マテリアル_前期 | C196: 10592
A197: 196 | B197: 岩手大_理工_シス／電気電子通信_前期 | C197: 10593
A198: 197 | B198: 岩手大_理工_シス／知能メディア情報_前期 | C198: 10594
A199: 198 | B199: 岩手大_理工_シス／機械科学_前期 | C199: 10595
A200: 199 | B200: 岩手大_理工_シス／社会基盤環境_前期 | C200: 10596
... 3337 more rows

Sheet benessetsv
A1: INDEX | B1: UNIV_COURSE | C1: UNIV_CODE
A2: 1 | B2: 旭川医大_医_医_前期 | C2: 1005550110
A3: 2 | B3: 旭川医大_医_医_後期 | C3: 1005550120
A4: 3 | B4: 旭川医大_医_看護_前期 | C4: 1005550210
A5: 4 | B5: 旭川医大_医_看護_後期 | C5: 1005550220
A6: 5 | B6: 小樽商大_商_<E>_前期 | C6: 1010200010
A7: 6 | B7: 小樽商大_商_<E>_後期 | C7: 1010200020
A8: 7 | B8: 小樽商大_商夜_<E>_前期 | C8: 1010240010
A9: 8 | B9: 帯広畜産大_畜産_畜産科学_前期 | C9: 1015740510
A10: 9 | B10: 帯広畜産大_畜産_畜産科学_後期 | C10: 1015740520
A11: 10 | B11: 帯広畜産大_畜産_共同獣医学_前期 | C11: 1015740610
A12: 11 | B12: 帯広畜産大_畜産_共同獣医学_後期 | C12: 1015740620
A13: 12 | B13: 北見工大_工_地球環境工_前期 | C13: 1020461010
A14: 13 | B14: 北見工大_工_地球環境工_後期 | C14: 1020461020
A15: 14 | B15: 北見工大_工_地域未来デザ_前期 | C15: 1020461110
A16: 15 | B16: 北見工大_工_地域未来デザ_後期 | C16: 1020461120
A17: 16 | B17: 北海道大_文_人文科学_前期 | C17: 1025010110
A18: 17 | B18: 北海道大_文_人文科学_後期 | C18: 1025010120
A19: 18 | B19: 北海道大_法_法学_前期 | C19: 1025120110
A20: 19 | B20: 北海道大_法_法学_後期 | C20: 1025120120
A21: 20 | B21: 北海道大_経済_<E>_前期 | C21: 1025180010
A22: 21 | B22: 北海道大_経済_<E>_後期 | C22: 1025180020
A23: 22 | B23: 北海道大_教育_教育_前期 | C23: 1025300110
A24: 23 | B24: 北海道大_教育_教育_後期 | C24: 1025300120
A25: 24 | B25: 北海道大_理_化学_後期 | C25: 1025420120
A26: 25 | B26: 北海道大_理_数学_後期 | C26: 1025420320
A27: 26 | B27: 北海道大_理_地球惑星科学_後期 | C27: 1025420720
A28: 27 | B28: 北海道大_理_物理_後期 | C28: 1025420820
A29: 28 | B29: 北海道大_理_生物／生物学_後期 | C29: 1025421320
A30: 29 | B30: 北海道大_理_生物／高分子_後期 | C30: 1025421420
A31: 30 | B31: 北海道大_工_環境社会工_後期 | C31: 1025461120
A32: 31 | B32: 北海道大_工_情報エレクト_後期 | C32: 1025461220
A33: 32 | B33: 北海道大_工_応用理工系_後期 | C33: 1025461820
A34: 33 | B34: 北海道大_工_機械知能工_後期 | C34: 1025461920
A35: 34 | B35: 北海道大_医_医_前期 | C35: 1025550110
A36: 35 | B36: 北海道大_医_保健／看護学_前期 | C36: 1025550310
A37: 36 | B37: 北海道大_医_保健／放射線_前期 | C37: 1025550410
A38: 37 | B38: 北海道大_医_保健／放射線_後期 | C38: 1025550420
A39: 38 | B39: 北海道大_医_保健／検査技_前期 | C39: 1025550510
A40: 39 | B40: 北海道大_医_保健／検査技_後期 | C40: 1025550520
A41: 40 | B41: 北海道大_医_保健／理学療_前期 | C41: 1025550610
A42: 41 | B42: 北海道大_医_保健／理学療_後期 | C42: 1025550620
A43: 42 | B43: 北海道大_医_保健／作業療_前期 | C43: 1025550710
A44: 43 | B44: 北海道大_歯_歯_前期 | C44: 1025580110
A45: 44 | B45: 北海道大_歯_歯_後期 | C45: 1025580120
A46: 45 | B46: 北海道大_薬_<E>_後期 | C46: 1025610020
A47: 46 | B47: 北海道大_農_<E>_後期 | C47: 1025720020
A48: 47 | B48: 北海道大_水産_<E>_前期 | C48: 1025730010
A49: 48 | B49: 北海道大_水産_<E>_後期 | C49: 1025730020
A50: 49 | B50: 北海道大_獣医_共同獣医学_前期 | C50: 1025740210
A51: 50 | B51: 北海道大_獣医_共同獣医学_後期 | C51: 1025740220
A52: 51 | B52: 北海道大_総合文系_<E>_前期 | C52: 1025910010
A53: 52 | B53: 北海道大_総合理系_数学_前期 | C53: 1025920010
A54: 53 | B54: 北海道大_総合理系_物理_前期 | C54: 1025920010
A55: 54 | B55: 北海道大_総合理系_化学_前期 | C55: 1025920010
A56: 55 | B56: 北海道大_総合理系_生物_前期 | C56: 1025920010
A57: 56 | B57: 北海道大_総合理系_総合_前期 | C57: 1025920010
A58: 57 | B58: 北教大旭川校_教育_教員／教育発_前期 | C58: 1030301710
A59: 58 | B59: 北教大旭川校_教育_教員／教育発_後期 | C59: 1030301720
A60: 59 | B60: 北教大旭川校_教育_教員／国語_前期 | C60: 1030301910
A61: 60 | B61: 北教大旭川校_教育_教員／国語_後期 | C61: 1030301920
A62: 61 | B62: 北教大旭川校_教育_教員／英語_前期 | C62: 1030302010
A63: 62 | B63: 北教大旭川校_教育_教員／英語_後期 | C63: 1030302020
A64: 63 | B64: 北教大旭川校_教育_教員／社会_前期 | C64: 1030302710
A65: 64 | B65: 北教大旭川校_教育_教員／社会_後期 | C65: 1030302720
A66: 65 | B66: 北教大旭川校_教育_教員／数学_前期 | C66: 1030302810
A67: 66 | B67: 北教大旭川校_教育_教員／数学_後期 | C67: 1030302820
A68: 67 | B68: 北教大旭川校_教育_教員／理科_前期 | C68: 1030302910
A69: 68 | B69: 北教大旭川校_教育_教員／理科_後期 | C69: 1030302920
A70: 69 | B70: 北教大旭川校_教育_教員／生活技_前期 | C70: 1030303010
A71: 70 | B71: 北教大旭川校_教育_教員／生活技_後期 | C71: 1030303020
A72: 71 | B72: 北教大旭川校_教育_教員／音楽_前期 | C72: 1030303210
A73: 72 | B73: 北教大旭川校_教育_教員／美術_前期 | C73: 1030303310
A74: 73 | B74: 北教大旭川校_教育_教員／保健体_前期 | C74: 1030303410
A75: 74 | B75: 北教大岩見沢校_教育_芸術／芸術ス_前期 | C75: 1035302110
A76: 75 | B76: 北教大岩見沢校_教育_芸術／芸術ス_後期 | C76: 1035302120
A77: 76 | B77: 北教大岩見沢校_教育_芸術／声楽_前期 | C77: 1035302210
A78: 77 | B78: 北教大岩見沢校_教育_芸術／鍵・作_前期 | C78: 1035302310
A79: 78 | B79: 北教大岩見沢校_教育_芸術／管弦打_前期 | C79: 1035302410
A80: 79 | B80: 北教大岩見沢校_教育_芸術／音楽教_前期 | C80: 1035302510
A81: 80 | B81: 北教大岩見沢校_教育_芸術／美術デ_前期 | C81: 1035302610
A82: 81 | B82: 北教大岩見沢校_教育_芸術／美術デ_後期 | C82: 1035302620
A83: 82 | B83: 北教大岩見沢校_教育_芸術／書画工_前期 | C83: 1035302710
A84: 83 | B84: 北教大岩見沢校_教育_芸術／書画工_後期 | C84: 1035302720
A85: 84 | B85: 北教大岩見沢校_教育_芸術／メディ_前期 | C85: 1035302810
A86: 85 | B86: 北教大岩見沢校_教育_芸術／メディ_後期 | C86: 1035302820
A87: 86 | B87: 北教大岩見沢校_教育_芸術／美術文_前期 | C87: 1035302910
A88: 87 | B88: 北教大岩見沢校_教育_芸術／美術文_後期 | C88: 1035302920
A89: 88 | B89: 北教大岩見沢校_教育_芸術／スポー_前期 | C89: 1035303010
A90: 89 | B90: 北教大岩見沢校_教育_芸術／スポー_後期 | C90: 1035303020
A91: 90 | B91: 北教大岩見沢校_教育_芸術／アウト_前期 | C91: 1035303110
A92: 91 | B92: 北教大岩見沢校_教育_芸術／アウト_後期 | C92: 1035303120
A93: 92 | B93: 北教大岩見沢校_教育_芸術／音楽文_後期 | C93: 1035303220
A94: 93 | B94: 北教大釧路校_教育_教員養成_前期 | C94: 1040301910
A95: 94 | B95: 北教大釧路校_教育_教員養成_後期 | C95: 1040301920
A96: 95 | B96: 北教大札幌校_教育_教員／特別支_前期 | C96: 1045302010
A97: 96 | B97: 北教大札幌校_教育_教員／特別支_後期 | C97: 1045302020
A98: 97 | B98: 北教大札幌校_教育_教員／養護教_前期 | C98: 1045302110
A99: 98 | B99: 北教大札幌校_教育_教員／養護教_後期 | C99: 1045302120
A100: 99 | B100: 北教大札幌校_教育_教員／学校教_前期 | C100: 1045302410
A101: 100 | B101: 北教大札幌校_教育_教員／学校教_後期 | C101: 1045302420
A102: 101 | B102: 北教大札幌校_教育_教員／言語社_前期 | C102: 1045302510
A103: 102 | B103: 北教大札幌校_教育_教員／言語社_後期 | C103: 1045302520
A104: 103 | B104: 北教大札幌校_教育_教員／理数教_前期 | C104: 1045302610
A105: 104 | B105: 北教大札幌校_教育_教員／理数教_後期 | C105: 1045302620
A106: 105 | B106: 北教大札幌校_教育_教員／生活創_前期 | C106: 1045302710
A107: 106 | B107: 北教大札幌校_教育_教員／生活創_後期 | C107: 1045302720
A108: 107 | B108: 北教大札幌校_教育_教員／図画工_前期 | C108: 1045302810
A109: 108 | B109: 北教大札幌校_教育_教員／音楽_前期 | C109: 1045302910
A110: 109 | B110: 北教大札幌校_教育_教員／保健体_前期 | C110: 1045303010
A111: 110 | B111: 北教大函館校_教育_国際／国際協_前期 | C111: 1050303210
A112: 111 | B112: 北教大函館校_教育_国際／国際協_後期 | C112: 1050303220
A113: 112 | B113: 北教大函館校_教育_国際／地域政_前期 | C113: 1050303310
A114: 113 | B114: 北教大函館校_教育_国際／地域政_後期 | C114: 1050303320
A115: 114 | B115: 北教大函館校_教育_国際／地域環_前期 | C115: 1050303410
A116: 115 | B116: 北教大函館校_教育_国際／地域環_後期 | C116: 1050303420
A117: 116 | B117: 北教大函館校_教育_国際／地域教_前期 | C117: 1050303510
A118: 117 | B118: 北教大函館校_教育_国際／地域教_後期 | C118: 1050303520
A119: 118 | B119: 室蘭工大_理工_生産工_前期 | C119: 1055470110
A120: 119 | B120: 室蘭工大_理工_生産工_後期 | C120: 1055470120
A121: 120 | B121: 室蘭工大_理工_生産科学_前期 | C121: 1055470210
A122: 121 | B122: 室蘭工大_理工_生産科学_後期 | C122: 1055470220
A123: 122 | B123: 室蘭工大_理工夜_生産工_前期 | C123: 1055530110
A124: 123 | B124: 室蘭工大_理工夜_生産工_後期 | C124: 1055530120
A125: 124 | B125: 弘前大_人文社会_文化創生_前期 | C125: 1060270110
A126: 125 | B126: 弘前大_人文社会_文化創生_後期 | C126: 1060270120
A127: 126 | B127: 弘前大_人文社会_社会経営_前期 | C127: 1060270210
A128: 127 | B128: 弘前大_人文社会_社会経営_前期 | C128: 1060270210
A129: 128 | B129: 弘前大_人文社会_社会経営_後期 | C129: 1060270220
A130: 129 | B130: 弘前大_教育_養護教諭_前期 | C130: 1060301510
A131: 130 | B131: 弘前大_教育_学校／特別支_前期 | C131: 1060304810
A132: 131 | B132: 弘前大_教育_学校／小学校_前期 | C132: 1060304910
A133: 132 | B133: 弘前大_教育_学校／小学校_後期 | C133: 1060304920
A134: 133 | B134: 弘前大_教育_学校／国語_前期 | C134: 1060305010
A135: 134 | B135: 弘前大_教育_学校／社会_前期 | C135: 1060305110
A136: 135 | B136: 弘前大_教育_学校／数学_前期 | C136: 1060305210
A137: 136 | B137: 弘前大_教育_学校／理科_前期 | C137: 1060305310
A138: 137 | B138: 弘前大_教育_学校／音楽_前期 | C138: 1060305410
A139: 138 | B139: 弘前大_教育_学校／美術_前期 | C139: 1060305510
A140: 139 | B140: 弘前大_教育_学校／保体_前期 | C140: 1060305610
A141: 140 | B141: 弘前大_教育_学校／技術_前期 | C141: 1060305710
A142: 141 | B142: 弘前大_教育_学校／家庭_前期 | C142: 1060305810
A143: 142 | B143: 弘前大_教育_学校／英語_前期 | C143: 1060305910
A144: 143 | B144: 弘前大_理工_物質創成化_前期 | C144: 1060470710
A145: 144 | B145: 弘前大_理工_物質創成化_後期 | C145: 1060470720
A146: 145 | B146: 弘前大_理工_電子情報工_前期 | C146: 1060470810
A147: 146 | B147: 弘前大_理工_電子情報工_後期 | C147: 1060470820
A148: 147 | B148: 弘前大_理工_数物科学_前期 | C148: 1060470910
A149: 148 | B149: 弘前大_理工_数物科学_前期 | C149: 1060470910
A150: 149 | B150: 弘前大_理工_数物科学_後期 | C150: 1060470920
A151: 150 | B151: 弘前大_理工_数物科学_後期 | C151: 1060470920
A152: 151 | B152: 弘前大_理工_地球環境防災_前期 | C152: 1060471010
A153: 152 | B153: 弘前大_理工_地球環境防災_後期 | C153: 1060471020
A154: 153 | B154: 弘前大_理工_機械科学_前期 | C154: 1060471110
A155: 154 | B155: 弘前大_理工_機械科学_後期 | C155: 1060471120
A156: 155 | B156: 弘前大_理工_自然エネルギ_前期 | C156: 1060471210
A157: 156 | B157: 弘前大_理工_自然エネルギ_後期 | C157: 1060471220
A158: 157 | B158: 弘前大_医_医_前期 | C158: 1060550110
A159: 158 | B159: 弘前大_医_医_前期 | C159: 1060550110
A160: 159 | B160: 弘前大_医_保健／看護学_前期 | C160: 1060550310
A161: 160 | B161: 弘前大_医_保健／放射線_前期 | C161: 1060550410
A162: 161 | B162: 弘前大_医_保健／検査技_前期 | C162: 1060550510
A163: 162 | B163: 弘前大_医_保健／理学療_前期 | C163: 1060550610
A164: 163 | B164: 弘前大_医_保健／作業療_前期 | C164: 1060550710
A165: 164 | B165: 弘前大_農学生命_生物_前期 | C165: 1060740510
A166: 165 | B166: 弘前大_農学生命_生物_後期 | C166: 1060740520
A167: 166 | B167: 弘前大_農学生命_分子生命科学_前期 | C167: 1060740610
A168: 167 | B168: 弘前大_農学生命_分子生命科学_後期 | C168: 1060740620
A169: 168 | B169: 弘前大_農学生命_食料資源_前期 | C169: 1060740710
A170: 169 | B170: 弘前大_農学生命_食料資源_後期 | C170: 1060740720
A171: 170 | B171: 弘前大_農学生命_国際園芸農_前期 | C171: 1060740810
A172: 171 | B172: 弘前大_農学生命_国際園芸農_後期 | C172: 1060740820
A173: 172 | B173: 弘前大_農学生命_地域環境工_前期 | C173: 1060740910
A174: 173 | B174: 弘前大_農学生命_地域環境工_後期 | C174: 1060740920
A175: 174 | B175: 岩手大_人文社会_人間文化_前期 | C175: 1065270610
A176: 175 | B176: 岩手大_人文社会_人間文化_後期 | C176: 1065270620
A177: 176 | B177: 岩手大_人文社会_地域政策_前期 | C177: 1065270710
A178: 177 | B178: 岩手大_人文社会_地域政策_後期 | C178: 1065270720
A179: 178 | B179: 岩手大_教育_学校／小学校_前期 | C179: 1065301510
A180: 179 | B180: 岩手大_教育_学校／小学校_後期 | C180: 1065301520
A181: 180 | B181: 岩手大_教育_学校／特別支_前期 | C181: 1065302710
A182: 181 | B182: 岩手大_教育_学校／特別支_後期 | C182: 1065302720
A183: 182 | B183: 岩手大_教育_学校／国語_前期 | C183: 1065304010
A184: 183 | B184: 岩手大_教育_学校／社会_前期 | C184: 1065304110
A185: 184 | B185: 岩手大_教育_学校／技術_前期 | C185: 1065304210
A186: 185 | B186: 岩手大_教育_学校／家庭_前期 | C186: 1065304310
A187: 186 | B187: 岩手大_教育_学校／英語_前期 | C187: 1065304410
A188: 187 | B188: 岩手大_教育_学校／音楽_前期 | C188: 1065304510
A189: 188 | B189: 岩手大_教育_学校／美術_前期 | C189: 1065304610
A190: 189 | B190: 岩手大_教育_学校／保健体_前期 | C190: 1065304710
A191: 190 | B191: 岩手大_教育_学校／数学_前期 | C191: 1065304810
A192: 191 | B192: 岩手大_教育_学校／理科_前期 | C192: 1065304910
A193: 192 | B193: 岩手大_理工_化学／化学_前期 | C193: 1065470410
A194: 193 | B194: 岩手大_理工_化学／化学_後期 | C194: 1065470420
A195: 194 | B195: 岩手大_理工_化学／生命_前期 | C195: 1065470510
A196: 195 | B196: 岩手大_理工_化学／生命_後期 | C196: 1065470520
A197: 196 | B197: 岩手大_理工_物理／数理物_前期 | C197: 1065470610
A198: 197 | B198: 岩手大_理工_物理／数理物_後期 | C198: 1065470620
A199: 198 | B199: 岩手大_理工_物理／マテリ_前期 | C199: 1065470710
A200: 199 | B200: 岩手大_理工_物理／マテリ_後期 | C200: 1065470720
... 3375 more rows
